Cogmind - Beta 12 @@@ ROGUE MODE // 2024.02.06 @ 15:20:55 Player: Dosh Result: Escaped! Performance ------------- Evolutions (9) 4500 Regions Visited (32) 6400 Robots Destroyed (480) 2400 Value Destroyed (19531) 19531 Prototype IDs (71) 1420 Alien Tech Used (0) 0 Bonus (23975) 23975 TOTAL SCORE: 58226 Bonus ------- Triggered High Security 1500 High Alert Combat Kills 5445 Follower Combat Kills 12560 Entered DSFs 500 Aligned with FarCom 300 Met Data Miner 300 Met Warlord at Base 500 MAIN.C Attacked Warlord 500 Warlord Defense Kills 674 Built Enhanced Grunts 300 A7 Reached Mainframe 300 Met Warlord at Research 2000 Win 3000 Friendly Fire -3904 Cogmind --------- Core Integrity 1570/1600 Matter 209/300 Energy 202/230 System Corruption 0% Temperature Cool (42) Movement Flying (15) Location To Epsilon Eridani Parts ------- > --- POWER (3) -------- Light Particle Reactor Micro Antimatter Reactor > --- PROPULSION (8) --- Xenon Bombardment Thruster Xenon Bombardment Thruster Xenon Bombardment Thruster Impulse Thruster Q-thruster Improved Diametric Drive Improved Diametric Drive Cooled Impulse Thruster > --- UTILITY (12) ----- Advanced Power Amplifier Advanced Heat Sink Advanced Heat Sink Experimental Core Analyzer Improved Transmission Jammer ECM Suite Advanced Powered Armor Experimental Thermal Shield Improved Hacking Suite Advanced Hacking Suite Advanced Hacking Suite Ghost Barrier > --- WEAPON (2) ------- Plasma Lance > --- INVENTORY (5) ---- Xenon Bombardment Thruster Remote Shield Mini Drone Bay (0/3) Enhanced Nova Cannon Enhanced Nova Cannon Peak State ------------ > --- POWER ------------ Vortex Chain Reactor > --- PROPULSION ------- Improved Heavy Siege Treads Centrium Heavy Treads > --- UTILITY ---------- Experimental Coolant Injector Huge Storage Unit Machine Analyzer Experimental Core Analyzer Centrium Medium Armor Plating Improved Energy Mantle Improved Hacking Suite Advanced Hacking Suite Experimental System Shield Combat Drone Bay > --- WEAPON ----------- Heavy Phase Cannon Vortex Driver > --- INVENTORY -------- Hybrid Antimatter Reactor Light Quantum Reactor Heavy Treads Heavy Treads Centrium Wheel Cesium-ion Thruster Advanced Cryofiber Web Energy Well 0b10 Alert Chip Advanced Cloaking Device Centrium Medium Armor Plating Advanced Hacking Suite Ghost Barrier Authchip [Device] Combat Drone Bay Vortex Driver Hardcell Cannon Hardcell Cannon RU-N14's Throwing Claymores RU-N14's Throwing Claymores RU-N14's Throwing Claymores [Rating: 159] Favorites ----------- Power Antimatter Reactor Engine Cooled Deuterium Engine Power Core Enhanced Nuclear Core Reactor Antimatter Reactor Propulsion Heavy Treads Treads Heavy Treads Wheel Centrium Wheel Flight Unit Xenon Bombardment Thruster Utility Hacking Suite Device Combat Drone Bay Storage Huge Storage Unit Processor Transport Network Coupler Hackware Hacking Suite Protection Layered Heavy Armor Plating Weapon Advanced Assault Cannon Energy Gun Phase Gun Energy Cannon Improved EM Pulse Cannon Ballistic Gun Enhanced Autogun Ballistic Cannon Advanced Assault Cannon Launcher Heavy Missile Launcher Special Weapon RU-N14's Throwing Claymores Piercing Weapon Plasma Lance Build | -11 -10 -10 -10 -9 -8 -7 -7 -7 -7 -7 -7 -6 -6 -6 -6 -6 -5 -5 -5 -5 -5 -5 -4 -4 -4 -4 -4 -4 -3 -3 -2 -1 ------- Run | Jun Mat Min Exi Min Mat Fac Was Fac Low Low Dat Pro Fac Low Low Zio Pro Fac Was Fac Upp War Pro Fac Ext Cet Arc Hub Res DSF Res Acc Slots Evolved 18 | . . . . . 4 2 . . . . . . 2 . . . . 2 . . . . . 2 . . . . 2 . 2 2 Power 2 | . . . . . . . . . . . . . . . . . . 1 . . . . . . . . . . . . 1 . Propulsion 6 | . . . . . 1 1 . . . . . . . . . . . . . . . . . . . . . . 2 . . 2 Utility 10 | . . . . . 3 1 . . . . . . 2 . . . . 1 . . . . . 2 . . . . . . 1 . Weapon . | . . . . . . . . . . . . . . . . . . . . . . . . . . . . . . . . . Parts Attached 416 | 7 13 4 . . 31 3 13 36 5 16 . 6 62 5 6 5 3 28 3 28 . 12 1 20 18 5 8 19 7 . 40 12 Power 28 | 1 1 1 . . 2 . 2 4 . . . . 2 . . . . 4 . 2 . . 1 1 . . . 2 3 . 2 . Engine 10 | 1 1 1 . . 2 . 2 2 . . . . 1 . . . . . . . . . . . . . . . . . . . Core 8 | . . . . . . . . 2 . . . . 1 . . . . 1 . 1 . . 1 . . . . . 2 . . . Reactor 10 | . . . . . . . . . . . . . . . . . . 3 . 1 . . . 1 . . . 2 1 . 2 . Propulsion 63 | 2 3 1 . . 9 1 2 4 . . . . 7 . . . . 2 1 2 . . . 1 3 1 1 2 1 . 15 5 Treads 40 | 2 3 1 . . 9 1 2 4 . . . . 7 . . . . 2 1 2 . . . 1 2 1 1 1 . . . . Leg . | . . . . . . . . . . . . . . . . . . . . . . . . . . . . . . . . . Wheel 1 | . . . . . . . . . . . . . . . . . . . . . . . . . 1 . . . . . . . Hover . | . . . . . . . . . . . . . . . . . . . . . . . . . . . . . . . . . Flight 22 | . . . . . . . . . . . . . . . . . . . . . . . . . . . . 1 1 . 15 5 Utility 207 | 2 2 . . . 11 2 7 21 3 9 . 5 27 3 4 3 2 18 2 18 . 4 . 14 7 2 5 7 3 . 21 5 Device 131 | 1 1 . . . 6 2 4 15 2 2 . 4 19 3 3 2 1 11 2 12 . 4 . 11 3 1 3 3 . . 14 2 Storage 5 | 1 1 . . . . . 1 . 1 . . . . . . . . . . . . . . . . . . . 1 . . . Processor 14 | . . . . . 1 . . 1 . . . . 2 . . . . . . . . . . 2 2 . 1 1 1 . 3 . Hackware 20 | . . . . . 1 . . . . . . . 2 . . . . 4 . 4 . . . 1 2 . . . 1 . 4 1 Protection 37 | . . . . . 3 . 2 5 . 7 . 1 4 . 1 1 1 3 . 2 . . . . . 1 1 3 . . . 2 Artifact . | . . . . . . . . . . . . . . . . . . . . . . . . . . . . . . . . . Weapon 118 | 2 7 2 . . 9 . 2 7 2 7 . 1 26 2 2 2 1 4 . 6 . 8 . 4 8 2 2 8 . . 2 2 Energy Gun 18 | 2 7 . . . . . . . . . . . 1 . 1 . . . . 1 . . . 2 3 . 1 . . . . . Energy Cannon 13 | . . . . . . . . . . 1 . . 3 1 . . . . . 1 . . . 1 2 1 1 1 . . . 1 Ballistic Gun 11 | . . 1 . . . . . 2 1 . . . 5 1 . . . . . . . 1 . . . . . . . . . . Ballistic Cannon 45 | . . . . . 6 . 2 4 . 3 . 1 8 . 1 2 1 4 . 3 . 4 . 1 1 1 . 3 . . . . Launcher 20 | . . 1 . . 3 . . 1 1 3 . . 9 . . . . . . . . 1 . . . . . . . . 1 . Special Weapon 9 | . . . . . . . . . . . . . . . . . . . . 1 . 2 . . 2 . . 4 . . . . Impact Weapon . | . . . . . . . . . . . . . . . . . . . . . . . . . . . . . . . . . Slashing Weapon . | . . . . . . . . . . . . . . . . . . . . . . . . . . . . . . . . . Piercing Weapon 2 | . . . . . . . . . . . . . . . . . . . . . . . . . . . . . . . 1 1 Special Melee Weapon . | . . . . . . . . . . . . . . . . . . . . . . . . . . . . . . . . . Unidentified Prototypes 23 | . . . . . 1 . 1 2 . 1 . . 2 . . . . . . 1 . 4 . 1 . 2 . 1 . . 6 1 Corrupted Parts 2 | . . . . . . . . . . . . . . . . . . . . . . . . . . . . 1 . . 1 . System Corruption 3 | . . . . . . . . . . . . . . . . . . . . . . . . . . . . 1 . . 2 . Parts Lost 50 | . 4 3 . . . . 2 4 . 1 . 2 5 . 2 . . 2 . 2 . . . 5 4 . 1 11 . 2 . . Power 7 | . . . . . . . 1 2 . . . . 1 . . . . . . . . . . . . . . 3 . . . . Propulsion 6 | . . 1 . . . . 1 . . . . . . . . . . . . . . . . 2 . . . 1 . 1 . . Utility 25 | . 1 . . . . . . 1 . 1 . 2 2 . 1 . . 2 . 1 . . . 2 3 . 1 7 . 1 . . Weapon 12 | . 3 2 . . . . . 1 . . . . 2 . 1 . . . . 1 . . . 1 1 . . . . . . . Highest Loss Streak 3 | . 3 3 . . . . 2 3 . 1 . 1 2 . 1 . . 1 . 1 . . . 2 2 . 1 3 . 2 . . To Critical Strikes 1 | . . . . . . . . . . . . . . . . . . . . . . . . . 1 . . . . . . . Average Slot Usage (%) 80 | . 94 99 100 100 89 88 85 87 76 79 84 75 80 79 78 77 80 75 75 74 64 74 76 75 71 77 81 77 20 20 60 92 Engine 3 | . 14 14 14 14 9 7 6 4 7 7 7 7 4 . . . . . . . . . . . . . . . . . . . Core 1 | . . . . . . . . 2 . . . . 1 6 6 6 6 2 . 1 5 5 5 4 . . . . 3 2 . . Reactor 2 | . . . . . . . . . . . . . . . . . . 8 11 8 5 5 5 5 5 5 5 4 2 2 6 8 Treads 15 | . 27 27 28 28 26 29 29 26 15 15 15 15 12 13 13 13 13 10 11 11 11 11 11 9 6 9 9 9 . . . . Device 12 | . 10 14 14 14 9 11 15 11 7 1 . 4 11 19 18 20 15 10 10 10 11 10 11 15 17 14 12 10 . . 20 26 Storage 6 | . 14 14 14 14 9 7 5 7 7 7 7 7 6 6 6 6 6 5 5 5 5 5 5 5 5 5 5 4 . . . . Processor 4 | . . . . . . . . 3 7 7 7 7 12 6 6 6 6 1 . . . . . 4 9 11 14 13 3 4 3 4 Hackware 11 | . . . . . 8 7 7 7 7 7 7 7 15 6 6 6 6 15 17 17 17 17 17 15 14 15 15 11 2 2 11 15 Protection 4 | . . . . . 8 7 4 6 7 17 23 9 . 6 6 6 10 5 5 4 5 5 5 4 . 3 5 10 . . . . Energy Gun 1 | . 26 23 . . . . 3 . . . . . . . 2 . . . . . . 3 . . 6 . 2 . . . . . Ballistic Gun 1 | . . 1 14 14 . . . . 9 4 . . 2 4 . . . . . . . . 5 4 . . . . . . . . Ballistic Cannon 7 | . . . . . 17 15 10 14 . 1 . 4 5 6 9 11 13 11 11 8 . 6 5 4 . 4 5 4 . . . . Launcher 1 | . . 2 14 14 . . . . 4 5 7 2 3 . . . . . . . . . . . . . . . . . . . Naked Turns 117 | . . . . . . . . . . . . . . . . . . . . . . . . . . . . 10 . 7 100 . Heaviest Build 175 | 15 54 54 50 50 85 87 87 86 123 125 122 124 127 128 130 129 133 164 164 170 146 171 175 175 158 175 169 167 13 13 38 50 Greatest Support 155 | 40 40 40 40 40 60 82 82 140 140 140 140 140 140 140 140 140 140 140 140 150 150 150 150 150 145 155 155 150 13 13 46 57 Greatest Overweight (x) 9 | . 1 1 1 1 1 1 2 1 . . . . . . . . . 1 1 1 . 1 1 1 9 1 1 1 . 1 1 . Average Overweight (x) . | . . 1 1 1 . . . . . . . . . . . . . . 1 . . . 1 . 5 1 1 . . . . . Largest Inventory Capacity 25 | 8 20 20 20 20 20 20 20 20 25 25 25 25 25 25 25 25 25 25 25 25 25 25 25 25 25 25 25 25 15 5 5 5 Average Capacity 22 | 7 16 20 20 20 20 20 16 20 23 25 25 25 25 25 25 25 25 25 25 25 25 25 25 25 25 25 25 24 5 5 5 5 Most Carried 25 | 3 7 10 12 17 20 20 20 20 22 25 23 25 25 24 23 25 25 25 25 25 25 25 25 25 23 25 25 25 5 5 5 5 Average Carried 20 | 1 5 8 10 15 17 19 14 19 20 22 23 23 23 23 21 23 24 24 24 24 25 24 24 24 21 23 24 23 5 3 4 4 Final Capacity 25 | 8 20 20 20 20 20 20 20 20 25 25 25 25 25 25 25 25 25 25 25 25 25 25 25 25 25 25 25 5 5 5 5 5 Final Carried 25 | 3 7 10 12 17 19 20 20 20 22 23 23 25 24 23 22 25 25 25 25 25 25 25 25 23 22 24 25 5 5 5 5 5 Class Distribution -------------------- 44% | Hacker-Mutant 41% | Mutant 6% | Scavenger-Mutant 5% | Hacker-Skirmisher Dominant Class ---------------- Mutant | -10/Materials Mutant | -10/Mines Mutant | -10/Exiles Mutant | -9/Mines Scavenger-Mutant | -8/Materials Mutant | -7/Factory Mutant | -7/Waste Mutant | -7/Factory Mutant | -7/Lower Caves Mutant | -7/Lower Caves Mutant | -7/Data Miner Mutant | -6/Proximity Caves Hacker-Mutant | -6/Factory Mutant | -6/Lower Caves Mutant | -6/Lower Caves Mutant | -6/Zion Mutant | -5/Proximity Caves Hacker-Mutant | -5/Factory Hacker-Mutant | -5/Waste Hacker-Mutant | -5/Factory Hacker-Mutant | -5/Upper Caves Hacker-Mutant | -5/Warlord Hacker-Mutant | -4/Proximity Caves Hacker-Mutant | -4/Factory Hacker-Mutant | -4/Extension Hacker-Mutant | -4/Cetus Hacker-Mutant | -4/Archives Hacker-Mutant | -4/Hub_04(d) Mutant | -3/Research Mutant | -3/DSF Hacker-Sprinter | -2/Research Wizard-Sprinter | -1/Access Resources | -11 -10 -10 -10 -9 -8 -7 -7 -7 -7 -7 -7 -6 -6 -6 -6 -6 -5 -5 -5 -5 -5 -5 -4 -4 -4 -4 -4 -4 -3 -3 -2 -1 ----------- Run | Jun Mat Min Exi Min Mat Fac Was Fac Low Low Dat Pro Fac Low Low Zio Pro Fac Was Fac Upp War Pro Fac Ext Cet Arc Hub Res DSF Res Acc Matter Collected 17411 | 268 120 50 . 52 1800 68 565 2007 331 750 . 1102 3583 398 320 65 54 937 185 1449 . 156 47 1190 487 118 208 485 . 4 583 29 Remotely . | . . . . . . . . . . . . . . . . . . . . . . . . . . . . . . . . . Salvage Created 16121 | 181 880 186 . 70 1254 53 26 1642 455 570 . 699 3713 . 135 . 24 717 . 853 . 103 85 1267 839 . 376 1964 . . . 29 Parts 776 | 11 43 14 . 12 100 7 2 79 20 17 . 32 141 . 3 . 1 31 . 45 . 4 1 58 34 . 22 97 . . . 2 Haulers Intercepted 12 | . 2 . . . 3 . . 2 . . . . 3 . . . . . . . . . . 1 . . . 1 . . . . Recyclers Shooed 17 | 1 1 . . . . . . 2 . . . . 4 . . . . 2 . 3 . . . . 3 . . 1 . . . . Parts Field Recycled 3 | . . . . . . . . . . . . . . . . . . . . . . . . . . . . . . . 3 . Retrieved Matter 90 | . . . . . . . . . . . . . . . . . . . . . . . . . . . . . . . 90 . Parts Self-Destructed 164 | . . . . . . . . . 16 13 . 29 . 12 68 . 16 . . . . . 10 . . . . . . . . . Prevented 9 | . . . . . . . . . . . . 8 . . . . . . . . . . 1 . . . . . . . . . Kills | -11 -10 -10 -10 -9 -8 -7 -7 -7 -7 -7 -7 -6 -6 -6 -6 -6 -5 -5 -5 -5 -5 -5 -4 -4 -4 -4 -4 -4 -3 -3 -2 -1 ------- Run | Jun Mat Min Exi Min Mat Fac Was Fac Low Low Dat Pro Fac Low Low Zio Pro Fac Was Fac Upp War Pro Fac Ext Cet Arc Hub Res DSF Res Acc Combat Hostiles Destroyed 348 | . 18 9 . 5 37 1 . 35 14 18 . 22 60 . 2 . 1 14 . 21 . 6 . 23 15 . 1 46 . . . . Melee 2 | . . . . . . . . . . . . . . . . . . . . . . . . 1 1 . . . . . . . Guns 40 | . 14 6 . . . . . . 1 3 . . 7 . . . . . . . . . . 6 3 . . . . . . . Cannons 154 | . . . . . 26 1 . 30 . 1 . 4 13 . 2 . 1 13 . 15 . 3 . 16 3 . 1 25 . . . . AOE 151 | . 4 3 . 5 11 . . 5 13 14 . 17 40 . . . . 1 . 6 . 3 . . 8 . . 21 . . . . Classes Destroyed 25 | 2 5 1 . . 6 1 1 2 1 1 . 3 1 . . . . . . . . 1 . . . . . . . . . . Worker 33 | . 1 . . . . 1 . 2 . . . . 11 . . . . 1 . 3 . . . 2 . . . 11 . . . 1 Builder 25 | . . . . . 3 . . 2 . . . . 6 . . . . . . 1 . . . 1 2 . . 10 . . . . Tunneler 12 | 4 . . . 1 3 . . . . . . . 1 . . . . . . . . . . . . . . 3 . . . . Hauler 12 | . 2 . . . 3 . . 2 . . . . 3 . . . . . . . . . . 1 . . . 1 . . . . Recycler 26 | 1 2 . . . 2 . . 9 . . . . 8 . . . . 2 . . . . . 1 . . . 1 . . . . Minesweeper 1 | . . . . . . . . . 1 . . . . . . . . . . . . . . . . . . . . . . . Mechanic 5 | . . . . . . . . 1 . . . . 3 . 1 . . . . . . . . . . . . . . . . . Operator 10 | . . . . . 1 . . . . . . . . . . . . . . . . . . . . . 9 . . . . . Drone 2 | . . . . . . . . . . . . 2 . . . . . . . . . . . . . . . . . . . . Watcher 10 | . 1 . . . 4 . . 1 . . . . 1 . . . . 1 . 1 . . . . 1 . . . . . . . Swarmer 51 | . 6 6 . 5 10 . . 4 4 8 . 2 1 . . . . . . . . . . . . . . 5 . . . . Saboteur 8 | . . . . . . . . . . . . . 3 . . . . . . . . 2 . 1 1 . . 1 . . . . Grunt 158 | . 12 2 . 1 15 . . 16 8 8 . 12 34 . 1 . . 4 . 7 . 2 . 7 8 . . 21 . . . . Brawler 13 | . . . . . 1 . . . . . . 3 5 . . . . . . . . . . . 1 . . 3 . . . . Duelist 8 | . . . . . . . . 1 1 . . . 2 . 1 . . 1 . . . . . . 1 . . 1 . . . . Protector 4 | . . . . . . . . . . . . 1 1 . . . . . . . . . . . 1 . . 1 . . . . Sentry 30 | . . . . . 9 . . 5 1 1 . 2 3 . . . . 1 . . . . . . 3 . 1 4 . . . . Demolisher 1 | . . . . . . . . . . . . . . . 1 . . . . . . . . . . . . . . . . . Hunter 11 | . . . . . 1 . . 3 . . . . 3 . . . . . . . . . . . . . . 4 . . . . Programmer 59 | . . . . . . 1 . 6 . . . . 8 . . . 1 8 . 15 . 1 . 15 . . . 4 . . . . Heavy 3 | . . . . . 1 . . . . . . . . . . . . . . . . . . . . . . 2 . . . . Behemoth 1 | . . . . . . . . . . . . 1 . . . . . . . . . . . . . . . . . . . . Executioner 1 | . . . . . . . . . . . . . . . . . . . . . . 1 . . . . . . . . . . Packrat 2 | . . . . . . . . . . 2 . . . . . . . . . . . . . . . . . . . . . . Assembled 1 | . . 1 . . . . . . . . . . . . . . . . . . . . . . . . . . . . . . Surgeon 1 | . . . . . . . . 1 . . . . . . . . . . . . . . . . . . . . . . . . Wasp 1 | . . . . . . . . 1 . . . . . . . . . . . . . . . . . . . . . . . . Martyr 1 | . . . . . . . 1 . . . . . . . . . . . . . . . . . . . . . . . . . Mutant 1 | . . . . . . . . . . 1 . . . . . . . . . . . . . . . . . . . . . . Best Kill Streak 22 | 3 5 3 . 4 8 1 . 5 6 4 . 7 12 . 1 . 1 6 . 5 . 6 . 4 8 . 2 22 . . . 1 Combat Bots Only 12 | . 5 3 . 4 6 1 . 4 6 4 . 7 11 . 1 . 1 3 . 5 . 6 . 4 8 . 1 12 . . . . Max Kills in Single Turn 6 | 1 2 1 . 2 3 1 1 2 3 4 . 2 6 . 1 . 1 4 . 3 . 3 . 1 3 . 1 6 . . . 1 Gunslinging . | . . . . . . . . . . . . . . . . . . . . . . . . . . . . . . . . . Exploded 4 | . 2 1 . 2 2 . . 2 3 4 . 2 4 . . . . 1 . 3 . 3 . . 3 . . 3 . . . . Melee 1 | . . . . . . . . . . . . . . . . . . . . . . . . 1 1 . . . . . . . Uniques/NPCs Destroyed 1 | . . . . . . . . . . . . . 1 . . . . . . . . . . . . . . . . . . . Warbot (-6/Factory) Combat | -11 -10 -10 -10 -9 -8 -7 -7 -7 -7 -7 -7 -6 -6 -6 -6 -6 -5 -5 -5 -5 -5 -5 -4 -4 -4 -4 -4 -4 -3 -3 -2 -1 -------- Run | Jun Mat Min Exi Min Mat Fac Was Fac Low Low Dat Pro Fac Low Low Zio Pro Fac Was Fac Upp War Pro Fac Ext Cet Arc Hub Res DSF Res Acc Damage Taken 25222 | . 543 364 . 22 1538 12 596 2407 402 514 . 1144 2817 . 604 . . 2565 . 3374 . 248 12 2460 962 40 40 3965 . 317 62 214 Core 2495 | . 109 67 . . 43 . 132 136 41 10 . 99 275 . 105 . . 228 . 178 . 7 . 82 49 . . 635 . 249 20 30 Absorbed by Shields 5865 | . . . . . 110 4 68 260 . 4 . 51 678 . 147 . . 191 . 812 . 95 12 1828 729 38 37 778 . . 17 6 Reduced by Siege Mode 495 | . . . . . . . . . . 11 . 35 37 . 11 . . 71 . 101 . . . 104 . . . 125 . . . . Redirected to Shielding 106 | . . . . . . . . . . 55 . 51 . . . . . . . . . . . . . . . . . . . . Regen/Repaired (Parts) 4282 | . 49 . . . 1121 . 61 621 . . . . 1356 . . . . . . 679 . 5 . . 390 . . . . . . . Core Remaining (%) 68 | 100 . . . 29 92 . . . . . . 40 . . . . 55 . . . . . 58 . . . . 33 . 80 98 98 Volleys Fired 1056 | 13 48 15 . 5 116 4 24 131 17 30 . 44 156 4 27 . 2 59 . 72 . 9 1 86 44 1 49 99 . . . . Largest 2 | 2 2 2 . 2 2 2 2 2 2 2 . 2 2 2 2 . 2 2 . 2 . 2 2 2 2 1 2 2 . . . . Hottest 178 | 100 100 90 . 50 96 96 96 96 64 73 . 117 143 128 101 . 101 114 . 147 . 114 95 161 178 100 155 155 . . . . Shots Fired 1800 | 26 87 28 . 7 211 8 48 249 29 40 . 54 267 6 45 . 4 110 1 133 . 16 2 166 83 4 48 128 . . . . Gun 460 | 26 87 26 . 2 . . 6 . 18 13 . . 81 1 18 . . . . . . . 1 77 60 . 44 . . . . . Cannon 1179 | . . . . . 197 8 42 247 . 14 . 34 132 5 27 . 4 110 1 131 . 14 1 89 17 4 4 98 . . . . Launcher 121 | . . 2 . 5 14 . . 2 11 13 . 20 54 . . . . . . . . . . . . . . . . . . . Special 40 | . . . . . . . . . . . . . . . . . . . . 2 . 2 . . 6 . . 30 . . . . Kinetic 1263 | . . . . 2 197 8 42 247 18 25 . 9 193 5 39 . 4 110 1 126 . 14 2 153 . 1 2 65 . . . . Thermal 201 | 26 10 . . . . . 6 . . . . . 6 . . . . . . 5 . . . 12 57 . 46 33 . . . . Explosive 161 | . . 2 . 5 14 . . 2 11 13 . 20 54 . . . . . . 2 . 2 . . 6 . . 30 . . . . Electromagnetic 171 | . 77 26 . . . . . . . 2 . 25 14 1 6 . . . . . . . . . 20 . . . . . . . Entropic 4 | . . . . . . . . . . . . . . . . . . . . . . . . 1 . 3 . . . . . . Robot Hit Streak 20 | 8 18 5 . . 11 8 4 11 9 11 . 11 10 3 6 . 2 10 . 9 . 7 1 13 18 1 7 20 . . . . Robot Miss Streak 8 | 2 4 6 . . 6 3 4 4 3 2 . 4 4 2 3 . 1 3 1 3 . 1 1 3 8 2 3 5 . . . . Penetration Max 1 | . . . . . . . . . . . . . . . . . . 1 . 1 . . . 1 . . . . . . . . Secondary Targets 1 | . 1 . . . . . . . . . . . . . . . . . . . . . . . . . . . . . . . Max Gunslinging Chain 1 | . 1 . . . . . . . . . . . . . . . . . . . . . . . . . . . . . . . Shots Hit Robots 1118 | 17 68 17 . . 121 3 19 150 20 26 . 38 157 3 24 . 2 72 . 85 . 6 1 123 54 1 30 80 . . . 1 Core Hits 917 | 6 37 18 . 9 68 2 6 72 33 50 . 67 204 . 11 . 2 27 . 38 . 8 4 51 46 1 19 138 . . . . Critical Kills 5 | . . . . . . . . . . . . . 2 . . . . 2 . . . . . 1 . . . . . . . . Critical Parts Destroyed 6 | . . . . . . . . . 1 . . . . . . . . 4 . . . . . 1 . . . . . . . . Critical Strikes 83 | 1 . . . . 8 1 . 10 1 1 . . 12 . . . . 12 . 13 . 2 . 7 5 1 . 9 . . . . Burn 4 | 1 . . . . . . . . . . . . . . . . . . . . . . . . 3 . . . . . . . Meltdown 1 | . . . . . . . . . . . . . 1 . . . . . . . . . . . . . . . . . . . Destroy 10 | . . . . . . . . . 1 . . . 1 . . . . 6 . . . . . 2 . . . . . . . . Blast 58 | . . . . . 8 1 . 10 . 1 . . 10 . . . . 6 . 13 . . . 5 . . . 4 . . . . Sever 9 | . . . . . . . . . . . . . . . . . . . . . . 2 . . 2 . . 5 . . . . Sunder 1 | . . . . . . . . . . . . . . . . . . . . . . . . . . 1 . . . . . . Melee Attacks 21 | . . . . . . . . . . . . . . . . . . . . . . . . . . . . . . . . 21 Impact . | . . . . . . . . . . . . . . . . . . . . . . . . . . . . . . . . . Slashing . | . . . . . . . . . . . . . . . . . . . . . . . . . . . . . . . . . Piercing 21 | . . . . . . . . . . . . . . . . . . . . . . . . . . . . . . . . 21 Sneak Attacks 1 | . . . . . . . . . . . . . . . . . . . . . . . . . . . . . . . . 1 Combat Hostiles . | . . . . . . . . . . . . . . . . . . . . . . . . . . . . . . . . . Follow-up Attacks . | . . . . . . . . . . . . . . . . . . . . . . . . . . . . . . . . . Damage Inflicted 63942 | 224 1407 362 . 363 4556 166 634 5168 1242 2013 . 4060 12572 90 733 . 63 2879 . 4889 . 1215 127 4752 3713 112 965 11514 . . 12 111 Guns 7131 | 224 962 188 . . . . 66 . 215 190 . . 1353 25 292 . . . . . . . . 1944 825 . 847 . . . . . Cannons 24520 | . . . . . 3075 149 568 4290 . 214 . 686 2578 65 441 . 63 2440 . 3774 . 196 38 2669 449 112 108 2605 . . . . Explosions 29705 | . 444 165 . 362 1419 . . 653 1027 1509 . 3234 8249 . . . . 400 . 934 . 936 . 32 2190 . . 8151 . . . . Melee 111 | . . . . . . . . . . . . . . . . . . . . . . . . . . . . . . . . 111 Ramming 1437 | . 1 9 . 1 62 17 . 225 . 100 . 140 392 . . . . 39 . 130 . . 89 107 82 . 10 21 . . 12 . Kinetic 25365 | . . . . . 3075 149 568 4290 215 333 . 198 3477 90 647 . 63 2440 . 3567 . 196 38 4291 . 34 75 1619 . . . . Thermal 5082 | 224 518 47 . . 296 . 66 . . . . . 322 . . . . . . 207 . . . 354 1182 . 880 986 . . . . Explosive 28665 | . . 118 . 362 1123 . . 653 1027 1509 . 3234 8116 . . . . 400 . 934 . 936 . . 2102 . . 8151 . . . . Electromagnetic 2166 | . 888 188 . . . . . . . 71 . 488 265 . 86 . . . . . . . . . 180 . . . . . . . Impact . | . . . . . . . . . . . . . . . . . . . . . . . . . . . . . . . . . Slashing 1038 | . . . . . . . . . . . . . . . . . . . . 51 . 83 . . 167 . . 737 . . . . Piercing 111 | . . . . . . . . . . . . . . . . . . . . . . . . . . . . . . . . 111 Entropic 78 | . . . . . . . . . . . . . . . . . . . . . . . . . . 78 . . . . . . Highest Corruption 27 | . . . . . 1 . 2 2 . . . . 1 1 4 4 . 3 3 27 27 27 . 13 26 26 26 24 . . 2 . Average Corruption 11 | . . . . . 1 . 1 1 . . . . 1 1 4 4 . 2 1 14 27 27 . 6 24 26 14 15 . . 1 . Corruption Purged 46 | . . . . . 1 . 2 7 . . . . 3 1 . . . 4 2 . . . . 5 . . 19 . . . 2 . Corruption Blocked 29 | . . . . . . . . . . . . . . . . . . . . . . . . . . . . . . . 29 . Effects 666 | . . . . . . . . 12 . . . . 6 2 32 . . 13 8 216 1 3 . 82 168 16 52 52 . . 3 . Message Errors 148 | . . . . . . . . 3 . . . . 3 . 6 . . 2 . 53 . . . 28 36 2 7 6 . . 2 . Matter Fused 161 | . . . . . . . . 4 . . . . 1 . 6 . . 4 3 47 . 1 . 15 46 3 15 16 . . . . Heat Flow Errors 86 | . . . . . . . . 2 . . . . 1 1 5 . . 2 1 25 1 1 . 4 20 2 8 13 . . . . Energy Discharges 66 | . . . . . . . . . . . . . 1 . 2 . . . 2 19 . . . 12 17 2 8 3 . . . . Parts Rejected 5 | . . . . . . . . . . . . . . . . . . . . 3 . . . 1 1 . . . . . . . Parts Fused 12 | . . . . . . . . . . . . . . . 1 . . 1 . 3 . . . 1 5 . . 1 . . . . Data Loss (minor) 77 | . . . . . . . . 2 . . . . . 1 5 . . 3 1 28 . . . 5 23 2 2 4 . . 1 . Data Loss (major) 38 | . . . . . . . . . . . . . . . 5 . . . . 13 . 1 . 6 9 1 3 . . . . . Misfires 30 | . . . . . . . . . . . . . . . . . . 1 1 10 . . . 6 7 3 2 . . . . . Alerts 18 | . . . . . . . . 1 . . . . . . 2 . . . . 9 . . . 1 1 1 2 1 . . . . Misdirections 6 | . . . . . . . . . . . . . . . . . . . . 3 . . . 1 . . . 2 . . . . Weapon Failures 19 | . . . . . . . . . . . . . . . . . . . . 3 . . . 2 3 . 5 6 . . . . Overload Shots . | . . . . . . . . . . . . . . . . . . . . . . . . . . . . . . . . . Overflow Damage 1934 | . 44 . . . 237 . . 168 27 30 . 94 284 . 5 . . 126 . 369 . . . 196 89 . . 194 . . . 71 Projectiles 924 | . . . . . 46 . . 120 . . . . 41 . 5 . . 126 . 368 . . . 196 . . . 22 . . . . Explosions 857 | . 44 . . . 191 . . 34 27 30 . 80 191 . . . . . . . . . . . 88 . . 172 . . . . Melee 153 | . . . . . . . . 14 . . . 14 52 . . . . . . 1 . . . . 1 . . . . . . 71 Knockbacks 162 | . . . . . 17 3 7 25 . 1 . . 20 . 7 . . 23 . 29 . 1 1 21 1 1 . 5 . . . . Impact 10 | . . . . . . 1 . . . 1 . . 4 . . . . 1 . . . . 1 1 1 . . . . . . . Kinetic 143 | . . . . . 17 2 5 25 . . . . 16 . 6 . . 22 . 26 . 1 . 17 . 1 . 5 . . . . Secondary 9 | . . . . . . . 2 . . . . . . . 1 . . . . 3 . . . 3 . . . . . . . . Self-Inflicted Damage 1089 | . 183 . . 22 60 . . 75 43 51 . 148 113 . . . . 62 . . . . . 277 49 . . . . . 6 . Shots 28 | . 5 . . 1 2 . . 2 2 2 . 6 3 . . . . 1 . . . . . 3 1 . . . . . . . Rammed 139 | 1 1 1 . 2 5 2 . 16 . 15 . 13 28 . . . . 5 . 19 . . 11 9 6 . 1 3 . . 1 . Targets Rammed 150 | 1 1 1 . 2 7 3 . 20 . 15 . 13 29 . . . . 5 . 19 . . 12 10 7 . 1 3 . . 1 . Kicked . | . . . . . . . . . . . . . . . . . . . . . . . . . . . . . . . . . Crushed 11 | . . . . . 2 1 . 4 . . . . 1 . . . . . . . . . 1 1 1 . . . . . . . Highest Temperature 417 | 235 260 165 . 12 372 . 36 378 . 132 . 232 277 205 267 . 54 417 174 399 201 397 61 324 198 174 196 374 . . . 48 Average Temperature 67 | 100 79 61 . 9 57 . 13 88 . 39 . 80 39 119 60 . 29 163 90 99 41 32 7 49 75 56 65 83 . . . 11 Received Heat Transfer 4395 | . 141 84 . . 534 . . 620 27 72 . 222 746 . 63 . . 360 . 495 . 40 . 286 118 6 . 540 . . 14 27 Effects 36 | 1 2 . . . 1 . . 3 . . . . . . . . . 10 . 13 . 1 . 5 . . . . . . . . Shutdowns 9 | . . . . . 1 . . 1 . . . . . . . . . 5 . 1 . 1 . . . . . . . . . . Energy Bleed 17 | 1 1 . . . . . . 2 . . . . . . . . . 2 . 6 . . . 5 . . . . . . . . Interference 9 | . 1 . . . . . . . . . . . . . . . . 3 . 5 . . . . . . . . . . . . Damage (minor) 1 | . . . . . . . . . . . . . . . . . . . . 1 . . . . . . . . . . . . Siege Activations 39 | . . . . . . . . . . 2 . 1 6 . 1 . . 8 . 7 . . . 7 . . . 7 . . . . Total Turns 723 | . . . . . . . . . . 16 . 16 158 . 14 . . 120 . 149 . . . 141 . . . 109 . . . . Longest Duration 83 | . . . . . . . . . . 9 . 16 83 . 14 . . 32 . 61 . . . 44 . . . 42 . . . . Robots Corrupted 3 | . 2 . . . . . . . . . . 1 . . . . . . . . . . . . . . . . . . . . Combat Hostiles 1 | . . . . . . . . . . . . 1 . . . . . . . . . . . . . . . . . . . . Parts Fried 18 | . 5 . . . . . . 2 . . . 2 6 . 1 . . . . . . . 1 . 1 . . . . . . . Impact Corruptions 13 | . . . . . . . . 2 . . . 3 5 . . . . . . 1 . . 1 . 1 . . . . . . . Robots Melted 1 | . . . . . . . . . . . . . 1 . . . . . . . . . . . . . . . . . . . Combat Hostiles . | . . . . . . . . . . . . . . . . . . . . . . . . . . . . . . . . . Parts Melted 9 | 1 . . . . . 1 . . . . . . . . . . . . . . . . . . 3 . 2 2 . . . . Heat Transferred 6752 | 740 822 50 . . 200 . 185 . . . . . 362 . . . . . . 185 . . . 457 1623 . 1129 999 . . . . Parts Sabotaged 3 | . . . . . . . . . . . . . . . . . . 1 . . . . . . 2 . . . . . . . Parts Stolen . | . . . . . . . . . . . . . . . . . . . . . . . . . . . . . . . . . Parts Stripped . | . . . . . . . . . . . . . . . . . . . . . . . . . . . . . . . . . Power Chain Reactions 8 | . 5 1 . . . . . . . . . . . . . . . . . . . . . . 2 . . . . . . . Missiles Intercepted . | . . . . . . . . . . . . . . . . . . . . . . . . . . . . . . . . . Alert | -11 -10 -10 -10 -9 -8 -7 -7 -7 -7 -7 -7 -6 -6 -6 -6 -6 -5 -5 -5 -5 -5 -5 -4 -4 -4 -4 -4 -4 -3 -3 -2 -1 ------- Run | Jun Mat Min Exi Min Mat Fac Was Fac Low Low Dat Pro Fac Low Low Zio Pro Fac Was Fac Upp War Pro Fac Ext Cet Arc Hub Res DSF Res Acc Peak Influence 3476 | 25 365 195 . 132 697 154 24 694 . . . . 3476 . . . . 1280 441 1981 . . . 1871 1511 1262 736 1429 765 573 505 357 Initial 1100 | . 16 84 . . 18 149 10 . . . . . 150 . . . . . 441 . . . . . 1100 832 504 103 750 573 310 212 Average 548 | 9 196 65 . 32 343 70 1 266 . . . . 837 . . . . 637 255 798 . . . 514 920 1080 540 682 761 567 369 252 Maximum Alert Level 5 | . 1 . . . 2 . . 2 . . . . 5 . . . . 4 2 5 . . . 5 4 4 3 4 3 2 2 1 Low Security (%) 35 | 100 38 100 . 100 21 100 100 56 . . . . 45 . . . . 15 34 14 . . . 48 . . . 14 . . . 16 Level 1 16 | . 61 . . . 41 . . 11 . . . . 15 . . . . 1 32 14 . . . 4 . . 3 2 . . 73 83 Level 2 20 | . . . . . 36 . . 31 . . . . . . . . . 50 32 16 . . . 14 28 . 83 25 . 100 26 . Level 3 13 | . . . . . . . . . . . . . 8 . . . . 24 . 23 . . . 16 42 52 13 44 100 . . . Level 4 8 | . . . . . . . . . . . . . 5 . . . . 7 . 27 . . . 12 28 47 . 13 . . . . Level 5 4 | . . . . . . . . . . . . . 22 . . . . . . . . . . . . . . . . . . . High Security 1 | . . . . . . . . . . . . . 3 . . . . . . 3 . . . 4 . . . . . . . . Max Security . | . . . . . . . . . . . . . . . . . . . . . . . . . . . . . . . . . Squads Dispatched 179 | . 4 1 . 1 6 1 . 15 . . . 1 39 . 1 . . 17 . 31 . . . 22 12 . . 20 2 1 2 3 Investigation 36 | . 4 1 . . 3 . . 3 . . . . 7 . . . . 4 . 6 . . . 4 1 . . 1 1 . 1 . Extermination 37 | . . . . . . 1 . 6 . . . . 9 . . . . 5 . 5 . . . 7 . . . 3 . . . 1 Reinforcement 35 | . . . . 1 3 . . 4 . . . . 4 . . . . 2 . 3 . . . 4 3 . . 6 1 1 1 2 Assault 58 | . . . . . . . . . . . . 1 19 . 1 . . 5 . 13 . . . 7 8 . . 4 . . . . Garrison 13 | . . . . . . . . 2 . . . . . . . . . 1 . 4 . . . . . . . 6 . . . . Intercept . | . . . . . . . . . . . . . . . . . . . . . . . . . . . . . . . . . Searches Triggered . | . . . . . . . . . . . . . . . . . . . . . . . . . . . . . . . . . Data Miner Redirects 33 | . . . . . . . . . . . . . 12 . . . . 6 . 4 . . . 3 7 . . 1 . . . . Construction Impeded 11 | . . . . 1 1 . . 1 . . . . 4 . . . . 1 . . . . . 1 1 . . 1 . . . . Haulers Reinforced 6 | . . . . . . . . . . . . . . . . . . . . 2 . . . 2 . . . 2 . . . . Active Scanning Responses . | . . . . . . . . . . . . . . . . . . . . . . . . . . . . . . . . . Cargo Convoy Interrupts . | . . . . . . . . . . . . . . . . . . . . . . . . . . . . . . . . . Stealth | -11 -10 -10 -10 -9 -8 -7 -7 -7 -7 -7 -7 -6 -6 -6 -6 -6 -5 -5 -5 -5 -5 -5 -4 -4 -4 -4 -4 -4 -3 -3 -2 -1 --------- Run | Jun Mat Min Exi Min Mat Fac Was Fac Low Low Dat Pro Fac Low Low Zio Pro Fac Was Fac Upp War Pro Fac Ext Cet Arc Hub Res DSF Res Acc Distress Signals 34 | . . 1 . . 7 . . 3 . . . . 2 . . . . 2 . 3 . . . 2 1 1 . 5 . . 5 2 Communications Jammed 191 | . . . . . . . . 17 . . . . 8 . . . . . . 80 . . . 36 50 . . . . . . . Distress Signals 184 | . . . . . . . . 17 . . . . 5 . . . . . . 80 . . . 32 50 . . . . . . . Times Spotted 888 | . 32 11 . 5 66 3 13 58 12 17 . 27 140 1 31 . 8 51 . 91 . 27 5 64 71 10 22 76 1 5 24 17 Peak Tracking Total 13 | . 7 3 . 3 5 1 6 5 5 5 . 10 12 1 9 . 5 6 . 11 . 12 4 5 7 5 1 13 1 3 5 7 Tactical Retreats 38 | . . 1 . . 6 . 2 3 1 . . . 2 . . . . 1 . 1 . . . 3 3 . . 2 . . 4 9 Traps | -11 -10 -10 -10 -9 -8 -7 -7 -7 -7 -7 -7 -6 -6 -6 -6 -6 -5 -5 -5 -5 -5 -5 -4 -4 -4 -4 -4 -4 -3 -3 -2 -1 ------- Run | Jun Mat Min Exi Min Mat Fac Was Fac Low Low Dat Pro Fac Low Low Zio Pro Fac Was Fac Upp War Pro Fac Ext Cet Arc Hub Res DSF Res Acc Traps Triggered 30 | . 3 . . . 4 1 . 2 . . . . 3 . . . . 6 . 1 . 1 . 4 4 . . . . . . 1 Indirectly . | . . . . . . . . . . . . . . . . . . . . . . . . . . . . . . . . . Trap Hack Attempts . | . . . . . . . . . . . . . . . . . . . . . . . . . . . . . . . . . Triggered . | . . . . . . . . . . . . . . . . . . . . . . . . . . . . . . . . . Disarmed . | . . . . . . . . . . . . . . . . . . . . . . . . . . . . . . . . . Reprogrammed . | . . . . . . . . . . . . . . . . . . . . . . . . . . . . . . . . . Reused 3 | . . . . . . . . . . . . . . . . . . 3 . . . . . . . . . . . . . . Traps Extracted 2 | . . . . . . . . . . 1 . . . . . . . 1 . . . . . . . . . . . . . . Installed 5 | . . . . . . . . . . . . . . . . . . 5 . . . . . . . . . . . . . . Triggered 23 | . 1 . . . . . . . . . . . . . 1 . . 4 . . . 17 . . . . . . . . . . Most Traps Carried 4 | . . . . . . . . . 3 4 4 4 4 4 4 4 4 4 . . . . . . . . . . . . . . Machines | -11 -10 -10 -10 -9 -8 -7 -7 -7 -7 -7 -7 -6 -6 -6 -6 -6 -5 -5 -5 -5 -5 -5 -4 -4 -4 -4 -4 -4 -3 -3 -2 -1 ---------- Run | Jun Mat Min Exi Min Mat Fac Was Fac Low Low Dat Pro Fac Low Low Zio Pro Fac Was Fac Upp War Pro Fac Ext Cet Arc Hub Res DSF Res Acc Machines Disabled 140 | . 1 1 . 1 6 . . 7 1 1 . 2 30 . 2 . . 18 . 25 . . . 26 . 3 3 13 . . . . Max in Single Turn 4 | . 1 1 . 1 2 . . 2 1 1 . 1 2 . . . . 4 . 4 . . . 4 . 2 . 2 . . . . Garrison Access 9 | . . . . . . . . 1 . . . . 2 . . . . 1 . 2 . . . 1 . . . . . . 2 . Energy Cycler 2 | . . . . . . . . . . . . . . . . . . . . . . . . . 2 . . . . . . . Machines Repaired . | . . . . . . . . . . . . . . . . . . . . . . . . . . . . . . . . . Machines Sabotaged . | . . . . . . . . . . . . . . . . . . . . . . . . . . . . . . . . . Overloaded Fab Kills . | . . . . . . . . . . . . . . . . . . . . . . . . . . . . . . . . . Hacking | -11 -10 -10 -10 -9 -8 -7 -7 -7 -7 -7 -7 -6 -6 -6 -6 -6 -5 -5 -5 -5 -5 -5 -4 -4 -4 -4 -4 -4 -3 -3 -2 -1 --------- Run | Jun Mat Min Exi Min Mat Fac Was Fac Low Low Dat Pro Fac Low Low Zio Pro Fac Was Fac Upp War Pro Fac Ext Cet Arc Hub Res DSF Res Acc Machines Accessed 134 | . 11 1 2 . 15 2 . 18 1 1 4 . 19 . . . . 8 . 25 . 1 . 9 8 . . 1 2 . 2 4 Terminals 61 | . 8 . . . 9 2 . 9 . . . . 8 . . . . 3 . 9 . . . 3 6 . . 1 1 . . 2 Fabricators 20 | . . . . . . . . 3 . . . . 5 . . . . 3 . 5 . . . 3 . . . . . . . 1 Repair Stations 15 | . 1 . . . 2 . . 3 . . . . 2 . . . . 2 . 4 . . . . 1 . . . . . . . Recycling Units 8 | . 2 . . . 2 . . 1 . . . . 1 . . . . . . . . . . . 1 . . . 1 . . . Scanalyzers 9 | . . . . . 2 . . 1 . . . . . . . . . . . 4 . . . 2 . . . . . . . . Garrison Access 11 | . . . . . . . . 1 . . . . 3 . . . . . . 3 . . . 1 . . . . . . 2 1 Total Hacks 470 | . 29 1 2 . 54 5 . 66 1 1 28 . 70 . . . . 35 . 93 . 1 . 35 33 . . 1 5 . 3 7 Successful 273 | . 18 1 2 . 30 2 . 38 1 1 28 . 40 . . . . 16 . 46 . 1 . 26 14 . . 1 3 . 1 4 Failed 195 | . 10 . . . 23 3 . 28 . . . . 30 . . . . 19 . 47 . . . 9 19 . . . 2 . 2 3 Catastrophic 29 | . 2 . . . 4 1 . 3 . . . . 5 . . . . 3 . 4 . . . 2 4 . . . . . 1 . Database Lockouts 2 | . 1 . . . 1 . . . . . . . . . . . . . . . . . . . . . . . . . . . Manual 209 | . 19 . 1 . 30 3 . 22 . . . . 32 . . . . 19 . 39 . 1 . 15 20 1 . 1 . . 2 4 Terminals 203 | . 24 . . . 31 5 . 31 . . . . 25 . . . . 14 . 31 . . . 12 24 . . 1 2 . . 3 Fabricators 79 | . . . . . . . . 10 . . . . 17 . . . . 15 . 23 . . . 12 . . . . . . . 2 Repair Stations 67 | . 2 . . . 12 . . 12 . . . . 14 . . . . 6 . 14 . . . . 7 . . . . . . . Recycling Units 17 | . 3 . . . 5 . . 2 . . . . 2 . . . . . . . . . . . 2 . . . 3 . . . Scanalyzers 43 | . . . . . 6 . . 8 . . . . . . . . . . . 19 . . . 10 . . . . . . . . Garrison Access 27 | . . . . . . . . 3 . . . . 12 . . . . . . 6 . . . 1 . . . . . . 3 2 Terminal Hacks 90 | . 10 1 2 . 7 1 . 8 1 1 28 . 6 . . . . 2 . 9 . 1 . 5 6 . . . 1 . . 1 Record 13 | . 1 . 1 . . . . . . . 11 . . . . . . . . . . . . . . . . . . . . . Part Schematic 8 | . . . . . . . . . . . 8 . . . . . . . . . . . . . . . . . . . . . Robot Schematic 6 | . . . . . . . . . . . 6 . . . . . . . . . . . . . . . . . . . . . Robot Analysis 6 | . 4 . . . 1 . . . . . . . 1 . . . . . . . . . . . . . . . . . . . Prototype ID Bank 5 | . 2 . . . . . . . . . 3 . . . . . . . . . . . . . . . . . . . . . Open Door 5 | . . 1 . . . . . . 1 1 . . . . . . . . . . . 1 . . . . . . . . . 1 Open DSF 1 | . . . . . . . . . . . . . . . . . . . . . . . . . . . . . 1 . . . Level Access Points 1 | . . . . . . . . 1 . . . . . . . . . . . . . . . . . . . . . . . . Branch Access Points 2 | . . . . . . . . . . . . . 1 . . . . . . 1 . . . . . . . . . . . . Machine Index 1 | . . . . . . . . . . . . . . . . . . . . 1 . . . . . . . . . . . . Terminal Index 6 | . 1 . . . . 1 . 1 . . . . 1 . . . . . . 1 . . . 1 . . . . . . . . Fabricator Index 1 | . . . . . . . . 1 . . . . . . . . . . . . . . . . . . . . . . . . Repair Station Index 1 | . . . . . . . . . . . . . . . . . . . . . . . . 1 . . . . . . . . Scanalyzer Index 2 | . . . . . . . . . . . . . . . . . . . . 1 . . . 1 . . . . . . . . Alert Level 8 | . . . . . 1 . . 2 . . . . 2 . . . . . . 2 . . . . 1 . . . . . . . Unreport Threat 14 | . . . . . 4 . . 1 . . . . . . . . . 2 . 3 . . . . 4 . . . . . . . Locate Traps 2 | . 1 . . . . . . . . . . . . . . . . . . . . . . 1 . . . . . . . . Dispatch Records 1 | . . . . . . . . 1 . . . . . . . . . . . . . . . . . . . . . . . . Patrol Status 1 | . . . . . . . . . . . . . . . . . . . . . . . . 1 . . . . . . . . Recall Reinforcements 1 | . . . . . . . . . . . . . . . . . . . . . . . . . 1 . . . . . . . Hauler Manifests 4 | . 1 . . . 1 . . 1 . . . . 1 . . . . . . . . . . . . . . . . . . . EX-Prototype ID Bank 1 | . . . 1 . . . . . . . . . . . . . . . . . . . . . . . . . . . . . Fabricator Hacks 36 | . . . . . . . . 5 . . . . 9 . . . . 7 . 7 . . . 6 . . . . . . . 2 Network Status 6 | . . . . . . . . 2 . . . . 1 . . . . 1 . 1 . . . 1 . . . . . . . . Load Schematic 16 | . . . . . . . . 2 . . . . 4 . . . . 3 . 3 . . . 3 . . . . . . . 1 Build 14 | . . . . . . . . 1 . . . . 4 . . . . 3 . 3 . . . 2 . . . . . . . 1 Repair Station Hacks 50 | . 2 . . . 10 . . 11 . . . . 12 . . . . 2 . 8 . . . . 5 . . . . . . . Scan Component 28 | . 1 . . . 5 . . 6 . . . . 6 . . . . 2 . 5 . . . . 3 . . . . . . . Repair 22 | . 1 . . . 5 . . 5 . . . . 6 . . . . . . 3 . . . . 2 . . . . . . . Recycling Unit Hacks 8 | . 1 . . . 2 . . 1 . . . . 1 . . . . . . . . . . . 1 . . . 2 . . . Process 1 | . . . . . . . . . . . . . . . . . . . . . . . . . . . . . 1 . . . Report Inventory 1 | . . . . . 1 . . . . . . . . . . . . . . . . . . . . . . . . . . . Retrieve Matter 1 | . . . . . . . . . . . . . . . . . . . . . . . . . . . . . 1 . . . Retrieve Components 5 | . 1 . . . 1 . . 1 . . . . 1 . . . . . . . . . . . 1 . . . . . . . Scanalyzer 33 | . . . . . 6 . . 7 . . . . . . . . . . . 12 . . . 8 . . . . . . . . Insert Component 17 | . . . . . 3 . . 3 . . . . . . . . . . . 6 . . . 5 . . . . . . . . Analyze 16 | . . . . . 3 . . 4 . . . . . . . . . . . 6 . . . 3 . . . . . . . . Garrison Access Hacks 6 | . . . . . . . . 1 . . . . 2 . . . . . . 2 . . . 1 . . . . . . . . Seal Access 6 | . . . . . . . . 1 . . . . 2 . . . . . . 2 . . . 1 . . . . . . . . Unauthorized Hacks 50 | . 5 . . . 5 1 . 5 . . . . 10 . . . . 5 . 8 . . . 6 2 . . 1 . . 1 1 Terminals 24 | . 3 . . . 3 1 . 3 . . . . 4 . . . . 1 . 3 . . . 2 2 . . 1 . . . 1 Assimilate 2 | . . . . . . . . . . . . . 2 . . . . . . . . . . . . . . . . . . . Botnet 20 | . 2 . . . 3 1 . 3 . . . . 2 . . . . 1 . 2 . . . 2 2 . . 1 . . . 1 Operators 2 | . 1 . . . . . . . . . . . . . . . . . . 1 . . . . . . . . . . . . Fabricators 17 | . . . . . . . . 1 . . . . 3 . . . . 4 . 5 . . . 4 . . . . . . . . Prioritize 3 | . . . . . . . . . . . . . 1 . . . . 1 . . . . . 1 . . . . . . . . Liberate 13 | . . . . . . . . 1 . . . . 2 . . . . 2 . 5 . . . 3 . . . . . . . . Recompile 1 | . . . . . . . . . . . . . . . . . . 1 . . . . . . . . . . . . . . Repair Stations . | . . . . . . . . . . . . . . . . . . . . . . . . . . . . . . . . . Recycling Units 6 | . 2 . . . 2 . . 1 . . . . 1 . . . . . . . . . . . . . . . . . . . Reject 4 | . . . . . 2 . . 1 . . . . 1 . . . . . . . . . . . . . . . . . . . Tunnel 2 | . 2 . . . . . . . . . . . . . . . . . . . . . . . . . . . . . . . Scanalyzers . | . . . . . . . . . . . . . . . . . . . . . . . . . . . . . . . . . Garrison Access 3 | . . . . . . . . . . . . . 2 . . . . . . . . . . . . . . . . . 1 . Broadcast 1 | . . . . . . . . . . . . . 1 . . . . . . . . . . . . . . . . . . . Watchers 1 | . . . . . . . . . . . . . 1 . . . . . . . . . . . . . . . . . . . Jam 1 | . . . . . . . . . . . . . . . . . . . . . . . . . . . . . . . 1 . Data Cores Recovered . | . . . . . . . . . . . . . . . . . . . . . . . . . . . . . . . . . Used . | . . . . . . . . . . . . . . . . . . . . . . . . . . . . . . . . . Hacking Detections 102 | . 9 . . . 13 2 . 16 . . . . 16 . . . . 7 . 20 . . . 6 7 . . 1 2 . 1 2 Full Trace Events 27 | . 1 . . . 1 . . 3 . . . . 7 . . . . 3 . 6 . . . 4 1 . . . 1 . . . Feedback Events 1 | . . . . . . . . . . . . . . . . . . . . . . . . 1 . . . . . . . . Corruption 1 | . . . . . . . . . . . . . . . . . . . . . . . . 1 . . . . . . . . Feedback Blocked . | . . . . . . . . . . . . . . . . . . . . . . . . . . . . . . . . . Robot Schematics Acquired 6 | . . . . . . . . . . . 6 . . . . . . . . . . . . . . . . . . . . . Robots Built . | . . . . . . . . . . . . . . . . . . . . . . . . . . . . . . . . . Authchips . | . . . . . . . . . . . . . . . . . . . . . . . . . . . . . . . . . Time . | . . . . . . . . . . . . . . . . . . . . . . . . . . . . . . . . . Total Robot Build Rating . | . . . . . . . . . . . . . . . . . . . . . . . . . . . . . . . . . Part Schematics Acquired 21 | . . . . . 3 . . 3 . . 8 . . . . . . . . 5 . . . 2 . . . . . . . . Parts Built 18 | . . . . . . . . 2 . . . . 5 . . . . 4 . 4 . . . 2 . . . . . . . 1 Authchips 5 | . . . . . . . . . . . . . . . . . . 2 . 2 . . . . . . . . . . . 1 Time 941 | . . . . . . . . 106 . . . . 277 . . . . 221 . 134 . . . 168 . . . . . . . 35 Total Part Build Rating 112 | . . . . . . . . 12 . . . . 30 . . . . 24 . 28 . . . 12 . . . . . . . 6 Parts Repaired 22 | . 1 . . . 5 . . 5 . . . . 6 . . . . . . 3 . . . . 2 . . . . . . . Time 1086 | . 32 . . . 196 . . 218 . . . . 290 . . . . . . 146 . . . . 204 . . . . . . . Parts Recycled . | . . . . . . . . . . . . . . . . . . . . . . . . . . . . . . . . . Recycled Matter 73 | . . . . . . . . . . . . . . . . . . . . . . . . . . . . . 73 . . . Retrieved Matter . | . . . . . . . . . . . . . . . . . . . . . . . . . . . . . . . . . Retrieved Components 34 | . 6 . . . 9 . . 3 . . . . 6 . . . . . . . . . . . 10 . . . . . . . Parts Scanalyzed 14 | . . . . . 3 . . 3 . . . . . . . . . . . 5 . . . 3 . . . . . . . . Part Schematics Acquired 13 | . . . . . 3 . . 3 . . . . . . . . . . . 5 . . . 2 . . . . . . . . Parts Damaged 2 | . . . . . . . . 1 . . . . . . . . . . . . . . . 1 . . . . . . . . Bothacking | -11 -10 -10 -10 -9 -8 -7 -7 -7 -7 -7 -7 -6 -6 -6 -6 -6 -5 -5 -5 -5 -5 -5 -4 -4 -4 -4 -4 -4 -3 -3 -2 -1 ------------ Run | Jun Mat Min Exi Min Mat Fac Was Fac Low Low Dat Pro Fac Low Low Zio Pro Fac Was Fac Upp War Pro Fac Ext Cet Arc Hub Res DSF Res Acc Used RIF Installer . | . . . . . . . . . . . . . . . . . . . . . . . . . . . . . . . . . Robots Hacked . | . . . . . . . . . . . . . . . . . . . . . . . . . . . . . . . . . Non-combat . | . . . . . . . . . . . . . . . . . . . . . . . . . . . . . . . . . Combat . | . . . . . . . . . . . . . . . . . . . . . . . . . . . . . . . . . Robot Hacks Applied . | . . . . . . . . . . . . . . . . . . . . . . . . . . . . . . . . . Relay Couplers Released 10 | . . . . . . . . . . . . . 4 . . . . 2 . . . . . 3 . . . . . . 1 . Machine Destruction 3 | . . . . . . . . . . . . . . . . . . 2 . . . . . . . . . . . . 1 . Programmers 7 | . . . . . . . . . . . . . 4 . . . . . . . . . . 3 . . . . . . . . Fabnet Peak Effective % . | . . . . . . . . . . . . . . . . . . . . . . . . . . . . . . . . . Robots Rewired 12 | . . . . . . 1 . . . . . 2 . . 1 . . . . . . . . . 8 . . . . . . . Allies Hacked 4 | . . . . . . . . . . . . . . . . . . . . 4 . . . . . . . . . . . . Hacks Repelled . | . . . . . . . . . . . . . . . . . . . . . . . . . . . . . . . . . Allies | -11 -10 -10 -10 -9 -8 -7 -7 -7 -7 -7 -7 -6 -6 -6 -6 -6 -5 -5 -5 -5 -5 -5 -4 -4 -4 -4 -4 -4 -3 -3 -2 -1 -------- Run | Jun Mat Min Exi Min Mat Fac Was Fac Low Low Dat Pro Fac Low Low Zio Pro Fac Was Fac Upp War Pro Fac Ext Cet Arc Hub Res DSF Res Acc Total Allies 74 | . . . . 3 . 1 19 . . . . 3 2 . 1 4 . . . 26 . . . . 10 5 . . . . . . Largest Group 19 | . . . . 3 1 1 19 11 . . . 2 2 1 1 4 4 . . 7 . . . . 5 9 8 6 . . . . Highest-Rated Group 769 | . . . . 40 16 16 475 305 . . . 96 125 26 29 112 112 . . 262 . . . . 340 769 673 481 . . . . Highest-Rated Ally 159 | . . . . 16 16 16 35 31 . . . 96 99 26 29 39 39 . . 54 . . . . 159 146 146 96 . . . . Total Orders 172 | . . . . . . . . . . . . . 30 3 15 2 11 28 1 28 . 4 5 22 15 1 2 . . . . 5 STAY 4 | . . . . . . . . . . . . . 3 . . . . . . . . . . . . . 1 . . . . . FOLLOW 10 | . . . . . . . . . . . . . 2 1 . . 1 3 . . . . . 1 1 . 1 . . . . . EXPLORE 13 | . . . . . . . . . . . . . . . . 1 . 1 . 1 . 3 1 1 . . . . . . . 5 RETURN 145 | . . . . . . . . . . . . . 25 2 15 1 10 24 1 27 . 1 4 20 14 1 . . . . . . Ally Attacks 2565 | . . . . 18 5 5 136 49 . . . 15 239 21 193 . 87 360 . 564 . . 81 312 332 68 35 45 . . . . Total Damage 58343 | . . . . 107 65 52 4699 662 . . . 420 7641 408 4009 . 2082 6833 . 11043 . . 1646 6226 7833 1226 1303 2088 . . . . Kills 373 | . . . . 2 3 . 11 5 . . . 3 64 4 32 . 7 39 . 76 . . 5 49 47 13 3 10 . . . . Allies Corrupted 7 | . . . . . . . . 1 . . . . . . . . . 1 . 2 . . . 1 1 1 . . . . . . Allies Melted 6 | . . . . . . . . 1 . . . . . . . . . . . 2 . . . . 1 . . . . . 2 . Intel | -11 -10 -10 -10 -9 -8 -7 -7 -7 -7 -7 -7 -6 -6 -6 -6 -6 -5 -5 -5 -5 -5 -5 -4 -4 -4 -4 -4 -4 -3 -3 -2 -1 ------- Run | Jun Mat Min Exi Min Mat Fac Was Fac Low Low Dat Pro Fac Low Low Zio Pro Fac Was Fac Upp War Pro Fac Ext Cet Arc Hub Res DSF Res Acc Robot Analysis Total 6 | . 4 . . . 1 . . . . . . . 1 . . . . . . . . . . . . . . . . . . . Derelict Logs Recovered 16 | . . 1 . 1 . . . . 1 2 . 2 . 2 2 1 2 . . . . . 2 . . . . . . . . . Drone Launches 359 | . . . . . . . . . . . . . 43 9 32 1 14 61 6 83 . 2 7 53 38 4 . . . . . 6 Drone Recoveries 343 | . . . . . . . . . . . . . 42 5 31 5 14 59 6 79 . 2 7 50 38 2 . . . . . 3 Exploration | -11 -10 -10 -10 -9 -8 -7 -7 -7 -7 -7 -7 -6 -6 -6 -6 -6 -5 -5 -5 -5 -5 -5 -4 -4 -4 -4 -4 -4 -3 -3 -2 -1 ------------- Run | Jun Mat Min Exi Min Mat Fac Was Fac Low Low Dat Pro Fac Low Low Zio Pro Fac Was Fac Upp War Pro Fac Ext Cet Arc Hub Res DSF Res Acc Turns Passed 59368 | 185 1319 865 562 1603 4993 982 1040 4111 1232 2265 133 2488 8309 908 1388 1982 696 3662 1219 5975 17 1069 855 3490 3520 299 1238 1086 168 37 1172 500 Spaces Moved 29352 | 87 514 338 234 660 1765 452 548 2008 738 1329 84 1455 3938 553 791 981 414 1363 318 2160 10 430 275 1072 1092 93 255 407 317 84 2865 1722 Core 423 | 7 . . . . . . 174 . . . . . . . . . . . . . . . . . . . . 21 . 24 197 . Treads 23490 | 80 514 338 234 660 1765 452 374 2008 738 1329 84 1455 3938 553 791 981 414 1363 318 2160 10 430 275 1072 471 93 255 335 . . . . Legs . | . . . . . . . . . . . . . . . . . . . . . . . . . . . . . . . . . Wheels 621 | . . . . . . . . . . . . . . . . . . . . . . . . . 621 . . . . . . . Hover . | . . . . . . . . . . . . . . . . . . . . . . . . . . . . . . . . . Flight 4818 | . . . . . . . . . . . . . . . . . . . . . . . . . . . . 51 317 60 2668 1722 Fastest Speed 12 | 50 160 240 240 240 163 163 50 160 160 160 160 160 160 160 160 160 160 160 240 180 180 180 270 180 170 255 240 40 37 37 24 12 Average Speed 168 | 151 213 240 240 240 243 208 151 163 160 160 160 160 160 160 160 160 160 227 240 240 180 232 270 265 263 255 240 167 38 41 32 17 Slowest Speed 320 | 160 240 240 240 240 250 250 250 246 160 160 160 160 160 160 160 160 160 240 240 270 180 270 270 270 320 255 255 240 40 120 112 19 Overloaded Moves 42 | . . . . . . . . . . . . . . . . . . . . . . . . . . . . . . . . 42 Propulsion Burnouts . | . . . . . . . . . . . . . . . . . . . . . . . . . . . . . . . . . Robots Hopped 28 | . . . . . . . . . . . . . . . . . . . . . . . . . . . . 7 1 1 10 9 Cave-ins Triggered 4 | . . . . . . . 2 . . . . . . . 1 . . . . . . . . . . . . 1 . . . . Exploration Rate (%) 66 | 6 99 84 61 97 98 16 96 50 85 98 69 97 52 85 93 89 67 33 83 60 8 95 77 22 86 73 80 41 12 83 53 38 Regions Visited 32 Branch Regions 18 Pre-discovered Areas 10 | . 2 1 1 1 . . . . 1 . 1 1 . . . 1 . . . . . . 1 . . . . . . . . . Known Exits Taken 8 | . . . . . 1 . . . . . . 1 1 1 . . 1 . . 1 . . . . . . . . 1 . 1 . Unknown Exits Taken 19 | 1 1 1 1 1 . . . 1 1 1 1 . . . 1 1 . . . . 1 1 1 1 1 1 1 1 . . . . Scrap Searched 27 | . . 1 . 2 . . . . 2 4 . 5 . 1 5 4 3 . . . . . . . . . . . . . . . Spaces Dug 77 | . . 6 . 8 2 . 14 3 . 2 . . 1 1 3 . . 3 . 3 . 5 . 3 . . . 4 . . . 19 Terrain Destroyed 1585 | . 16 21 . 30 128 . 17 85 116 128 . 155 289 2 10 . 2 73 2 96 . 21 3 113 57 2 6 194 . . . 19 Melee 19 | . . . . . . . . . . . . . . . . . . . . . . . . . . . . . . . . 19 Projectile 329 | . . . . . 58 . 17 36 . 5 . 1 16 2 10 . 2 37 2 29 . 7 3 62 4 2 6 30 . . . . AOE 1236 | . 16 21 . 30 70 . . 49 116 123 . 154 273 . . . . 35 . 67 . 14 . 51 53 . . 164 . . . . Terrain Rammed . | . . . . . . . . . . . . . . . . . . . . . . . . . . . . . . . . . Walls Destroyed . | . . . . . . . . . . . . . . . . . . . . . . . . . . . . . . . . . Machines Disabled . | . . . . . . . . . . . . . . . . . . . . . . . . . . . . . . . . . Actions | -11 -10 -10 -10 -9 -8 -7 -7 -7 -7 -7 -7 -6 -6 -6 -6 -6 -5 -5 -5 -5 -5 -5 -4 -4 -4 -4 -4 -4 -3 -3 -2 -1 --------- Run | Jun Mat Min Exi Min Mat Fac Was Fac Low Low Dat Pro Fac Low Low Zio Pro Fac Was Fac Upp War Pro Fac Ext Cet Arc Hub Res DSF Res Acc Total 37324 | 110 648 363 235 671 2251 480 722 2565 763 1419 83 1550 5662 572 874 1399 445 1819 777 2802 9 488 367 1545 1649 155 826 664 360 85 3085 1881 Wait 5592 | . 62 1 . . 282 4 92 335 . 20 . 5 1410 . 19 383 17 274 444 440 . 10 75 295 428 47 508 137 36 . 150 118 Move 29266 | 86 513 337 233 659 1764 452 547 2007 737 1328 83 1454 3937 552 790 980 413 1363 317 2159 9 429 274 1071 1091 92 254 393 314 81 2844 1703 Hop 27 | . . . . . . . . . . . . . . . . . . . . . . . . . . . . 6 1 1 10 9 Pick Up 276 | 3 5 5 2 5 21 2 23 14 3 3 . 4 29 4 10 16 3 28 5 27 . 6 1 22 13 4 4 3 . . 11 . Fast Attach 143 | 7 6 . . . 6 1 2 13 . 1 . 3 10 . . . . 6 1 9 . 9 . 4 10 1 3 6 7 . 32 6 Attach 107 | . 3 3 . . 4 1 10 4 . 5 . 2 14 2 2 2 1 9 2 6 . 1 . 11 6 1 3 6 . . 6 3 Detach 76 | . 2 . . . 3 . 9 2 . 3 . 1 9 1 . 2 . 3 1 7 . 7 . 6 3 3 2 1 . 2 6 3 Swap 166 | . 4 1 . . 21 1 1 19 5 10 . 1 38 3 4 3 2 13 . 13 . 2 1 5 2 3 2 7 . . 2 3 Drop 275 | . 4 . . . 27 1 14 20 1 4 . 4 26 4 10 12 4 34 5 25 . 15 2 20 10 2 . 3 2 1 23 2 Fire 1056 | 13 48 15 . 5 116 4 24 131 17 30 . 44 156 4 27 . 2 59 . 72 . 9 1 86 44 1 49 99 . . . . Melee 21 | . . . . . . . . . . . . . . . . . . . . . . . . . . . . . . . . 21 Ram 3 | . . . . . . . . . . . . . . . . . . . . . . . . . 2 . . . . . 1 . Kick . | . . . . . . . . . . . . . . . . . . . . . . . . . . . . . . . . . Crush 147 | 1 1 1 . 2 7 3 . 20 . 15 . 13 29 . . . . 5 . 19 . . 12 10 5 . 1 3 . . . . Escape Stasis 27 | . . . . . . . . . . . . . . . . . . 6 . 2 . . . 2 4 . . . . . . 13 Rewire 57 | . . . . . . 11 . . . . . 19 . . 3 . 2 . . . . . . . 22 . . . . . . . Trap 5 | . . . . . . . . . . . . . . . . . . 5 . . . . . . . . . . . . . . Miscellaneous 80 | . . . . . . . . . . . . . 4 2 9 1 1 14 2 23 . . 1 13 9 1 . . . . . . Route ------- -11/Junkyard -10/Materials (discovered 4 exits: [*Mat x3] / *Min) -10/Mines (discovered 3 exits: [*Mat x2] / *Exi) -10/Exiles (discovered 2 exits: [*Min x2]) -9/Mines (discovered 2 exits: *Mat x2) -8/Materials (discovered 3 exits: *Fac x3) -7/Factory -7/Waste -7/Factory (discovered 6 exits: *Fac x4 / [*Sto] / *Low) -7/Lower Caves -7/Lower Caves (discovered 2 exits: *Fac / *Dat) -7/Data Miner -6/Proximity Caves -6/Factory (discovered 5 exits: *Fac x3 / *Low x2) -6/Lower Caves -6/Lower Caves (discovered 2 exits: *Fac / [*Zio]) -6/Zion -5/Proximity Caves -5/Factory -5/Waste -5/Factory (discovered 4 exits: *Fac x2 / *Upp x2) -5/Upper Caves -5/Warlord -4/Proximity Caves -4/Factory (discovered 2 exits: [*Upp] / *Ext) -4/Extension (discovered 3 exits: *Res x2 / *Cet) -4/Cetus -4/Archives (discovered 3 exits: *Res / *Hub x2) -4/Hub_04(d) -3/Research (discovered 2 exits: Qua / DSF) -3/DSF -2/Research (discovered 2 exits: *Acc / [*Tes]) -1/Access To Epsilon Eridani History --------- Turn | Location | Event 18 | -11/Junkyard | Discovered new exit (range 16) 186 | -11/Junkyard | Entered Materials 265 | -10/Materials | Discovered new exit (range 14) 301 | -10/Materials | Build established: Mutant 391 | -10/Materials | Central database locked down 639 | -10/Materials | Discovered new exit (range 4) 848 | -10/Materials | Lost 3 parts (1u2w) 1141 | -10/Materials | Repaired EM Shotgun 1153 | -10/Materials | Discovered new exit (range 12) 1388 | -10/Materials | Discovered new exit (range 16) 1505 | -10/Materials | Entered Mines 1523 | -10/Mines | Assembled infested the area 1567 | -10/Mines | Core integrity fell below 50% 1608 | -10/Mines | Met a Derelict bent on vengeance 2052 | -10/Mines | YI-UF0 nonchalantly dropped a Grenade Launcher on the ground 2090 | -10/Mines | Discovered new exit (range 8) 2122 | -10/Mines | Learned 2 Materials zone layouts 2146 | -10/Mines | Discovered new exit (range 10) 2194 | -10/Mines | Deemed a non-threat by the Exiles lab entrance 2194 | -10/Mines | Discovered new exit (range 5) 2236 | -10/Mines | Met a Derelict shopkeep closing up shop 2276 | -10/Mines | Lost 3 parts (1n2w) 2299 | -10/Mines | Learned location of Storage (-7) 2370 | -10/Mines | Entered Exiles 2402 | -10/Exiles | Discovered new exit (range 15) 2435 | -10/Exiles | Met 8R-AWN 2471 | -10/Exiles | Met EX-HEX 2541 | -10/Exiles | Met EX-BIN 2574 | -10/Exiles | Aligned with FarCom system 2577 | -10/Exiles | Given EX-Vault access code 2637 | -10/Exiles | Opened EX-Vault 2654 | -10/Exiles | Found 0b10 Alert Chip 2703 | -10/Exiles | Warned to stay clear of 0b10 Research branches 2779 | -10/Exiles | Met EX-DEC 2789 | -10/Exiles | Learned location of Zion (-6) 2910 | -10/Exiles | Discovered new exit (range 10) 2932 | -10/Exiles | Left Exiles lab with 0b10 Alert Chip 2932 | -10/Exiles | Entered Mines 2939 | -9/Mines | Received a Rocket Launcher from a helpful Derelict 3015 | -9/Mines | A weapon hastily lodged in a ceiling crevice suddenly fell to the ground 3343 | -9/Mines | Discovered new exit (range 9) 3382 | -9/Mines | Assisted by bots powering up and referring to "LRC-V3" 3423 | -9/Mines | Discovered new exit (range 3) 4535 | -9/Mines | Entered Materials 4535 | -8/Materials | Accompanied by 1 ally 4535 | -8/Materials | Evolved 4 slots: Propulsion x1, Utility x3 5592 | -8/Materials | Repaired Hrd. Heavy Armor Plating 5632 | -8/Materials | Repaired Arm. Treads 5659 | -8/Materials | Repaired Lgt. Treads 5705 | -8/Materials | Repaired Adv. Assault Cannon 5919 | -8/Materials | Build established: Scavenger-Mutant 6490 | -8/Materials | Discovered new exit (range 13) 6971 | -8/Materials | Discovered new exit (range 8) 7502 | -8/Materials | Discovered new exit (range 9) 8235 | -8/Materials | Central database locked down 8340 | -8/Materials | Repaired Hrd. Heavy Armor Plating 9429 | -8/Materials | Identified exit to Factory 9528 | -8/Materials | Entered Factory 9528 | -7/Factory | Evolved 2 slots: Propulsion x1, Utility x1 9571 | -7/Factory | Build established: Mutant 9896 | -7/Factory | Discovered new exit (range 10) 10510 | -7/Factory | Sucked down chute 10510 | -7/Factory | Entered Waste 10580 | -7/Waste | Spotted C-40 Crusher 10595 | -7/Waste | Spotted C-40 Crusher 10595 | -7/Waste | Spotted C-40 Crusher 10596 | -7/Waste | Crushed by Compactor (1 part destroyed, 1 dropped) 10619 | -7/Waste | Crushed by falling debris 10701 | -7/Waste | Crushed by falling debris 10737 | -7/Waste | Spotted C-40 Crusher 10788 | -7/Waste | Spotted C-40 Crusher 10802 | -7/Waste | Spotted C-40 Crusher 10810 | -7/Waste | Discovered new exit (range 16) 10815 | -7/Waste | Warlord forces began an assault 10842 | -7/Waste | Allies destroyed C-40 Crusher 10847 | -7/Waste | Allies destroyed C-40 Crusher 10857 | -7/Waste | Allies destroyed C-40 Crusher 10860 | -7/Waste | Allies destroyed C-40 Crusher 10866 | -7/Waste | Allies destroyed C-40 Crusher 10866 | -7/Waste | Allies destroyed C-40 Crusher 11366 | -7/Waste | Found Hvy. Reflective Plating 11550 | -7/Waste | Entered Factory 11550 | -7/Factory | Accompanied by 11 allies 12345 | -7/Factory | Discovered new exit (range 5) 12821 | -7/Factory | Repaired Broken Imp. System Restoration Module 13009 | -7/Factory | Repaired Hvy. Reflective Plating? 13277 | -7/Factory | Discovered new exit (range 15) 13520 | -7/Factory | Repaired Imp. Cooling System 13763 | -7/Factory | Repaired Broken Imp. System Restoration Module 13934 | -7/Factory | Garrison activated, responded to threat 14044 | -7/Factory | Garrison activated, responded to threat 14060 | -7/Factory | Lost 3 parts (1p1u1w) 14330 | -7/Factory | Fabricated Hvy. Treads? 14382 | -7/Factory | Identified exit to Factory 14474 | -7/Factory | Repaired Hvy. Armor Plating 14665 | -7/Factory | Discovered new exit (range 16) 15661 | -7/Factory | Entered Lower Caves 15689 | -7/Lower Caves | Attracted the attention of an 0b10 outpost 16061 | -7/Lower Caves | Spotted B-75 Beast 16817 | -7/Lower Caves | Discovered new exit (range 12) 16893 | -7/Lower Caves | Entered another Lower Caves area 16932 | -7/Lower Caves | Learned location of 1 exit from Factory 17304 | -7/Lower Caves | Attracted the attention of an 0b10 checkpoint 17601 | -7/Lower Caves | Attacked by a delusional Derelict stockpiling parts 17711 | -7/Lower Caves | Found Prototype Device 17981 | -7/Lower Caves | Discovered new exit (range 9) 18603 | -7/Lower Caves | Identified Heart of Steel 19158 | -7/Lower Caves | Entered Data Miner 19158 | -7/Data Miner | Discovered new exit (range 6) 19189 | -7/Data Miner | Met Data Miner 19219 | -7/Data Miner | Learned location of Section 7 (-2) 19219 | -7/Data Miner | Acquired the access code to Warlord's prototype stash 19253 | -7/Data Miner | Received God Mode back door access code from Data Miner 19291 | -7/Data Miner | Entered Proximity Caves 19399 | -6/Proximity Caves | Spotter reported a threat 19402 | -6/Proximity Caves | Escorted by Enhanced Grunt 19726 | -6/Proximity Caves | Attracted the attention of an 0b10 outpost 19736 | -6/Proximity Caves | Core integrity fell below 50% 19763 | -6/Proximity Caves | Destroyed 7 combat bots 19938 | -6/Proximity Caves | Learned 4 Factory zone layouts 20113 | -6/Proximity Caves | Spotted B-75 Beast 20133 | -6/Proximity Caves | Destroyed B-75 Beast 20195 | -6/Proximity Caves | Attracted the attention of an 0b10 checkpoint 20565 | -6/Proximity Caves | Discovered exit to Factory (range 11) 21779 | -6/Proximity Caves | Entered Factory 21779 | -6/Factory | Evolved 2 slots: Utility x2 21780 | -6/Factory | Identified exit to Factory 21883 | -6/Factory | Incoming investigation squad redirected 21996 | -6/Factory | Repaired Hvy. Treads 22138 | -6/Factory | Build established: Hacker-Mutant 22787 | -6/Factory | Incoming investigation squad redirected 22815 | -6/Factory | Fabricated Combat Drone Bay (x1) 23167 | -6/Factory | Fabricated Combat Drone Bay? 23201 | -6/Factory | Build established: Hacker-Skirmisher 23216 | -6/Factory | Discovered exit to Factory (range 7) 23737 | -6/Factory | Repaired Imp. System Restoration Module 23794 | -6/Factory | Repaired Hvy. Treads 23839 | -6/Factory | Repaired Hvy. Missile Launcher 23896 | -6/Factory | Repaired Hvy. Treads 23953 | -6/Factory | Repaired Hvy. Treads 24568 | -6/Factory | Incoming investigation squad redirected 24634 | -6/Factory | Fabricated Combat Drone Bay? 25479 | -6/Factory | Build established: Hacker-Mutant 26447 | -6/Factory | Heart of Steel transformed into Warbot 27406 | -6/Factory | First assault squad dispatched 27746 | -6/Factory | Incoming assault squad redirected 27849 | -6/Factory | Incoming investigation squad redirected 27879 | -6/Factory | Fabricated Hvy. Treads (x2) 28041 | -6/Factory | Identified exit to Lower Caves 28201 | -6/Factory | Destroyed 7 combat bots 28444 | -6/Factory | Incoming assault squad redirected 28501 | -6/Factory | Incoming assault squad redirected 28794 | -6/Factory | Incoming assault squad redirected 28795 | -6/Factory | Incoming assault squad redirected 28801 | -6/Factory | Incoming assault squad redirected 29150 | -6/Factory | Incoming assault squad redirected 29472 | -6/Factory | Build established: Mutant 29507 | -6/Factory | Incoming assault squad redirected 29802 | -6/Factory | High security lockdown imminent 29882 | -6/Factory | High security lockdown engaged 30019 | -6/Factory | Destroyed Warbot 30074 | -6/Factory | Destroyed 11 combat bots 30088 | -6/Factory | Entered Lower Caves 30088 | -6/Lower Caves | Accompanied by 1 ally 30316 | -6/Lower Caves | Identified exit to Lower Caves 30327 | -6/Lower Caves | Spotted B-75 Beast 30334 | -6/Lower Caves | Allies destroyed B-75 Beast 30622 | -6/Lower Caves | Learned Factory security intel 30631 | -6/Lower Caves | Encountered a Warlord checkpoint 30996 | -6/Lower Caves | Entered another Lower Caves area 30996 | -6/Lower Caves | Accompanied by 5 allies 30998 | -6/Lower Caves | Attracted the attention of an 0b10 outpost 31062 | -6/Lower Caves | Discovered exit to Factory (range 10) 31067 | -6/Lower Caves | Crushed by falling debris 31449 | -6/Lower Caves | Learned Factory stockpile data 31512 | -6/Lower Caves | Learned Factory non-interactive machine intel 32346 | -6/Lower Caves | Discovered new exit (range 14) 32384 | -6/Lower Caves | Entered Zion 32384 | -6/Zion | Accompanied by 5 allies 32429 | -6/Zion | System corruption cleaned by Quarantine Array 32540 | -6/Zion | Discovered new exit (range 27) 32564 | -6/Zion | Given A8's code to call for help 32832 | -6/Zion | Learned location of Armory (-4) 32896 | -6/Zion | Found Prototype Hackware 32899 | -6/Zion | Found Prototype Processor 32901 | -6/Zion | Found Prototype Processor 32951 | -6/Zion | Identified Exp. System Shield 32953 | -6/Zion | Identified Spectral Analyzer 32985 | -6/Zion | Found Prototype Processor 33011 | -6/Zion | Identified Exp. Melee Analysis Suite 33055 | -6/Zion | Identified Exp. Target Analyzer 33075 | -6/Zion | Found Prototype Processor 33078 | -6/Zion | Identified Exp. Armor Integrity Analyzer 33120 | -6/Zion | Found Prototype Processor 33171 | -6/Zion | Identified Exp. Targeting Computer 33477 | -6/Zion | Gained Derelict followers 34267 | -6/Zion | Found Prototype Special Weapon 34269 | -6/Zion | Found Prototype Special Weapon 34273 | -6/Zion | Found Prototype Special Weapon 34275 | -6/Zion | Found Prototype Special Weapon 34299 | -6/Zion | Identified RU-N14's Throwing Claymores (x4) 34366 | -6/Zion | Entered Proximity Caves 34366 | -5/Proximity Caves | Accompanied by 5 allies 34418 | -5/Proximity Caves | P-70 Sage assimilated allied 4B-9V6(h) 34424 | -5/Proximity Caves | P-70 Sage assimilated allied RV-J79(l) 34487 | -5/Proximity Caves | Learned Factory stockpile data 34631 | -5/Proximity Caves | Allies destroyed B-75 Beast 34940 | -5/Proximity Caves | Learned 4 Factory zone layouts 35038 | -5/Proximity Caves | Discovered exit to Factory (range 9) 35062 | -5/Proximity Caves | Entered Factory 35062 | -5/Factory | Accompanied by 1 ally 35062 | -5/Factory | Evolved 2 slots: Power x1, Utility x1 35066 | -5/Factory | Loaded intel: 222 non-interactive machine locations 35129 | -5/Factory | Spotted B-75 Beast 35136 | -5/Factory | Allies destroyed B-75 Beast 35291 | -5/Factory | Fabricated Combat Drone Bay (x1) 35500 | -5/Factory | Build established: Hacker-Mutant 35661 | -5/Factory | Incoming assault squad redirected 35985 | -5/Factory | Incoming investigation squad redirected 36047 | -5/Factory | Fabricated Combat Drone Bay (x1) 36556 | -5/Factory | Discovered new exit (range 15) 37162 | -5/Factory | First assault squad dispatched 37905 | -5/Factory | Incoming investigation squad redirected 38455 | -5/Factory | Incoming assault squad redirected 38661 | -5/Factory | Fabricated Hvy. Treads (x2) 38678 | -5/Factory | Incoming assault squad redirected 38683 | -5/Factory | Incoming assault squad redirected 38724 | -5/Factory | Sucked down chute 38724 | -5/Factory | Entered Waste 38724 | -5/Waste | The area was eerily silent 39574 | -5/Waste | Discovered new exit (range 13) 39943 | -5/Waste | Entered Factory 40759 | -5/Factory | Discovered new exit (range 6) 40962 | -5/Factory | Discovered new exit (range 7) 41384 | -5/Factory | Fabricated Adv. Hacking Suite (x1) 41421 | -5/Factory | Fabricated Adv. Hacking Suite (x1) 41736 | -5/Factory | Garrison activated, responded to threat 41743 | -5/Factory | First assault squad dispatched 42364 | -5/Factory | Discovered new exit (range 15) 42530 | -5/Factory | Incoming investigation squad redirected 42712 | -5/Factory | Incoming investigation squad redirected 43038 | -5/Factory | System corruption reached 10% 43668 | -5/Factory | Identified exit to Upper Caves 44020 | -5/Factory | Incoming investigation squad redirected 44056 | -5/Factory | Garrison activated, responded to threat 44172 | -5/Factory | Incoming assault squad redirected 44883 | -5/Factory | Repaired Hyb. Antimatter Reactor? 45025 | -5/Factory | Repaired Lyr. Heavy Armor Plating 45235 | -5/Factory | Spotted B-75 Beast 45245 | -5/Factory | Allies destroyed B-75 Beast 45333 | -5/Factory | Repaired Remote Force Field? 45691 | -5/Factory | High security lockdown imminent 45692 | -5/Factory | Fabricated Imp. Heavy Siege Treads? 45771 | -5/Factory | High security lockdown engaged 45918 | -5/Factory | Entered Upper Caves 45921 | -5/Upper Caves | A Derelict revealed a hidden shortcut to "reach the base" 45935 | -5/Upper Caves | Entered Warlord 46003 | -5/Warlord | System corruption cleaned by Quarantine Array 46241 | -5/Warlord | Discovered new exit (range 98) 46423 | -5/Warlord | Met Warlord 46448 | -5/Warlord | Warlord's base attacked by MAIN.C 46450 | -5/Warlord | Opened Warlord's prototype stash 46489 | -5/Warlord | Found Prototype Device 46489 | -5/Warlord | Identified Exp. Focal Shield 46504 | -5/Warlord | Found Prototype Reactor 46527 | -5/Warlord | Found Prototype Hackware 46533 | -5/Warlord | Found Prototype Processor 46672 | -5/Warlord | Found Prototype Energy Cannon 46676 | -5/Warlord | Found Prototype Energy Cannon 46798 | -5/Warlord | Warlord forces counterattacked 46809 | -5/Warlord | Spotted Striker 46823 | -5/Warlord | Spotted Executioner 46877 | -5/Warlord | Spotted Striker 46951 | -5/Warlord | Spotted Striker 46958 | -5/Warlord | Spotted Executioner 46972 | -5/Warlord | Destroyed Executioner 47004 | -5/Warlord | Entered Proximity Caves 47029 | -4/Proximity Caves | Learned 8 Research zone layouts 47147 | -4/Proximity Caves | Spotted B-86 Titan 47174 | -4/Proximity Caves | Allies destroyed B-86 Titan 47339 | -4/Proximity Caves | Acquired the password to a Derelict Tinkerer's latest research 47685 | -4/Proximity Caves | Discovered new exit (range 7) 47859 | -4/Proximity Caves | Entered Factory 47859 | -4/Factory | Evolved 2 slots: Utility x2 47986 | -4/Factory | Incoming investigation squad redirected 48048 | -4/Factory | Fabricated Combat Drone Bay? 49403 | -4/Factory | Discovered new exit (range 11) 50025 | -4/Factory | Identified Ghost Barrier 50025 | -4/Factory | Identified Exp. Core Analyzer 50025 | -4/Factory | Identified Vortex Driver (x2) 50025 | -4/Factory | Identified Vortex Chain Reactor 50123 | -4/Factory | Incoming investigation squad redirected 50177 | -4/Factory | Fabricated Combat Drone Bay? 50208 | -4/Factory | System corruption reached 10% 50609 | -4/Factory | First assault squad dispatched 50889 | -4/Factory | Incoming assault squad redirected 51203 | -4/Factory | High security lockdown imminent 51283 | -4/Factory | High security lockdown engaged 51309 | -4/Factory | Discovered new exit (range 15) 51349 | -4/Factory | Entered Extension 51599 | -4/Extension | First assault squad dispatched 51678 | -4/Extension | Rescued a captive Derelict 52033 | -4/Extension | Repaired Broken Imp. Energy Mantle 52102 | -4/Extension | Repaired Imp. Heavy Siege Treads 52368 | -4/Extension | Incoming assault squad redirected 52376 | -4/Extension | Incoming assault squad redirected 53344 | -4/Extension | Energy Cycler disabled 53344 | -4/Extension | Rescued a captive Derelict 53345 | -4/Extension | Rescued a captive Derelict 53345 | -4/Extension | Rescued a captive Derelict 53346 | -4/Extension | Rescued A7 53346 | -4/Extension | Rescued a captive Derelict 53347 | -4/Extension | Rescued a captive Derelict 53354 | -4/Extension | Rescued a captive Derelict 53377 | -4/Extension | Incoming assault squad redirected 53514 | -4/Extension | Incoming investigation squad redirected 53905 | -4/Extension | Spotted B-86 Titan 53921 | -4/Extension | Discovered new exit (range 21) 53941 | -4/Extension | Allies destroyed B-86 Titan 53954 | -4/Extension | Spotted B-86 Titan 53962 | -4/Extension | Allies destroyed B-86 Titan 54126 | -4/Extension | Incoming assault squad redirected 54184 | -4/Extension | Incoming assault squad redirected 54209 | -4/Extension | Destroyed 8 combat bots 54624 | -4/Extension | Incoming assault squad redirected 54851 | -4/Extension | Discovered new exit (range 10) 54853 | -4/Extension | Discovered new exit (range 6) 54869 | -4/Extension | Entered Cetus 54869 | -4/Cetus | Accompanied by 4 allies (A7) 54874 | -4/Cetus | Acquired a Cetus Manufacturing Module code from A7 54905 | -4/Cetus | Spotted Cetus Guard 54905 | -4/Cetus | Spotted Cetus Guard 54905 | -4/Cetus | Spotted Cetus Guard 54905 | -4/Cetus | Spotted Cetus Guard 54906 | -4/Cetus | Allies destroyed Cetus Guard 54908 | -4/Cetus | Allies destroyed Cetus Guard 54912 | -4/Cetus | Allies destroyed Cetus Guard 54920 | -4/Cetus | Allies destroyed Cetus Guard 55028 | -4/Cetus | Started Cetus Manufacturing Module 55053 | -4/Cetus | Manufactured an Enhanced Grunt 55061 | -4/Cetus | Escorted A7 to Cetus Mainframe 55078 | -4/Cetus | Manufactured an Enhanced Grunt 55096 | -4/Cetus | Discovered new exit (range 15) 55103 | -4/Cetus | Manufactured an Enhanced Grunt 55128 | -4/Cetus | Manufactured an Enhanced Grunt 55153 | -4/Cetus | Manufactured an Enhanced Grunt 55168 | -4/Cetus | Entered Archives 55168 | -4/Archives | Accompanied by 8 allies (A7) 55173 | -4/Archives | Received a hacking code to weaken MAIN.C 55266 | -4/Archives | Discovered new exit (range 15) 55290 | -4/Archives | Discovered new exit (range 16) 55586 | -4/Archives | Discovered new exit (range 15) 56325 | -4/Archives | Build established: Hacker-Skirmisher 56406 | -4/Archives | Entered Hub_04(d) 56406 | -4/Hub_04(d) | Accompanied by 6 allies 56551 | -4/Hub_04(d) | Incoming investigation squad redirected 56557 | -4/Hub_04(d) | Garrison activated, responded to threat 56714 | -4/Hub_04(d) | Crushed by falling debris 56762 | -4/Hub_04(d) | Destroyed 7 combat bots 56864 | -4/Hub_04(d) | Destroyed 8 combat bots 57018 | -4/Hub_04(d) | Build established: Hacker-Mutant 57023 | -4/Hub_04(d) | Found Prototype Processor 57023 | -4/Hub_04(d) | Identified Exp. Signal Interpreter 57098 | -4/Hub_04(d) | Spotted B-86 Titan 57184 | -4/Hub_04(d) | First assault squad dispatched 57332 | -4/Hub_04(d) | Destroyed 12 combat bots 57350 | -4/Hub_04(d) | Lost 3 parts (1p2u) 57460 | -4/Hub_04(d) | Released all parts (10) 57462 | -4/Hub_04(d) | Core integrity fell below 50% 57477 | -4/Hub_04(d) | Destroyed 9 combat bots 57484 | -4/Hub_04(d) | Discovered new exit (range 13) 57488 | -4/Hub_04(d) | Lost 3 parts (1p2u) 57492 | -4/Hub_04(d) | Entered Research 57492 | -3/Research | Evolved 2 slots: Propulsion x2 57493 | -3/Research | Identified exit to Quarantine 57660 | -3/Research | Identified exit to DSF 57660 | -3/Research | Entered DSF 57681 | -3/DSF | Additional patrols routed to DSF 57689 | -3/DSF | Discovered new exit (range 15) 57697 | -3/DSF | Entered Research 57697 | -2/Research | Warlord forces began assault on 0b10 57697 | -2/Research | Evolved 2 slots: Power x1, Utility x1 57763 | -2/Research | Build established: Mutant 57807 | -2/Research | Research machine network offline 57832 | -2/Research | Found Exp. Core Analyzer 57851 | -2/Research | Met up with Warlord 57948 | -2/Research | Discovered new exit (range 11) 58010 | -2/Research | Spotted B-90 Cyclops 58019 | -2/Research | Found Prototype Device 58019 | -2/Research | Identified Exp. Thermal Shield 58021 | -2/Research | Found Prototype Launcher 58021 | -2/Research | Identified Adv. Micro-nuke Launcher 58029 | -2/Research | Spotted Striker 58117 | -2/Research | Borebot progress halted 58144 | -2/Research | Found Prototype Device 58144 | -2/Research | Identified System Purifier 58189 | -2/Research | Found Gamma Bomb Array 58275 | -2/Research | Build established: Hacker-Sprinter 58418 | -2/Research | Borebot progress halted 58502 | -2/Research | Borebot progress halted 58546 | -2/Research | Discovered new exit (range 8) 58857 | -2/Research | Identified exit to Access 58869 | -2/Research | Entered Access 58869 | -1/Access | Evolved 2 slots: Propulsion x2 58885 | -1/Access | Found Unknown Protection 58885 | -1/Access | Identified Adv. Powered Armor 58919 | -1/Access | Fabricated Imp. Transmission Jammer (x1) 59265 | -1/Access | Build established: Wizard-Sprinter 59368 | -1/Access | Discovered new exit (range 6) 59369 | *** | Escaped! Last Messages --------------- 59277_ Slug penetrates Mini Drone. 59277_ Mini Drone destroyed. 59281_ K-01 Serf collects debris. 59282_ K-01 Serf destroyed. 59282_ Slug penetrates Wall. 59282_ Slug penetrates Mini Drone. 59282_ Slug penetrates Wall. 59285_ C-30 ARC bursts open, deploying its payload. 59285_ G-73 Enforcer unfolds itself. 59285_ Mini Drone destroyed. 59300_ Slug penetrates Wall. 59300_ Penetrated by Slug. 59300_ Slug penetrates Wall. 59300_ Penetrated by Slug. 59329_ U-05 Engineer builds a Wall. 59368_ Connecting with Terminal... >>Open(Door) Sealed Barrier opened. 59368_ The Access Shell folds into the floor. 59368_ EXIT=FOUND Map ----- +----------------------------------------------------+ | # #?# #??? * ???????????????????????????? | | # ### #??? ! ????????????????????????????? | | ## #?? ?????????????????????????????? | | + #??"" ""?????????????????????????????? | | ##### #? ""T"" ????????????????????????????? | | ????# #? """??????????????????????????????? | | ????# # ????????????????????????????????? | | ????# # ??????????????????????????????????? | | ????####+###"#####???????????????????????????????? | | ###### ### #???????????????????????????????? | | #?# #???????????????????????????????? | | #?# #???????????????????????????????? | | #?# #???????????????????????????????? | | ####### #???????????????????????????????? | | + #???BB????BB????????????????????? | | = # #???BB????BB????????????????????? | | # #???????????????????????????????? | | # #???????????????????????????????? | | ###########"#??????????????????????????????? | | #??????????##??????????????????????????????? | | ##???????????#""""""""""#??????????????????? | | "###########?# #??????????????????? | | # #?# #??????????????????? | | # #?# #??????????????????? | | # "" #?# "" #??????????????????? | | # "" #?# "@ #??????????????????? | | # """""" #?# #??????????????????? | | # """""" #?# #??????????????????? | | # "" #?# #??????????????????? | | # "" ### ##?????????????????? | | # ## #?????????????????? | | # ###"" ##?????????????????? | | "" + #?#"" #??????????????????? | | "" ## #?#"" #??????????????????? | | "T ## ] #?#T #??????????????????? | | "" ## #?#"" #??????????????????? | | "" ## ###"" #??????????????????? | | ############"##"" ####??????????#????? | | k ?????? ???? | | ????? ???? | | ##############+####################+########/#???? | | ???????????? ???????????????# #???? | | ?????????? #??????????????# #???? | | ???????? "" = #??????????????# = #???? | | ?????? "" #??????????????# #???? | | ????# """""" #??????????????# #???? | | ????# ?"""""" #??????????????# #???? | | ???????? "" #??????????????# #???? | | ???????? ?" #??????????????# #???? | | ?????????? #??????????????# #???? | +----------------------------------------------------+ Best States ------------- Heat Dissipation 90 Coolant Potential 120 Energy Generation 55 Energy Capacity 1315 Matter Stores 300 Matter Capacity 300 Sight Range 16 Terrain Scan Density 210 ECM Strength 1 Jamming Range 14 Power Amplification 30 Base Temperature (-) 200 Armor Coverage 1350 Resistance: KI 30 Resistance: TH 30 Weapon Shielding 66 Point Defense Rating 160 Phase Shifting 10 Evasion (%) 73 Target Analysis 8 Core Analysis 8 Recoil Reduction 4 Offensive Hacking 40 Defensive Hacking 20 Authchip Count 4 Trap Extractor Capacity 4 Item Schematics ----------------- Huge Storage Unit | -8/Materials | Scanalyzed Trap Extractor | -8/Materials | Scanalyzed System Restoration Module | -8/Materials | Scanalyzed Hvy. Treads | -7/Factory | Scanalyzed Imp. System Restoration Module | -7/Factory | Scanalyzed Transmission Jammer | -7/Factory | Scanalyzed Combat Drone Bay | -7/Data Miner | Free Lgt. Regenerative Plating | -7/Data Miner | Free Cld. Cesium-ion Thruster | -7/Data Miner | Free Gravity Neutralizer | -7/Data Miner | Free Force Rifle | -7/Data Miner | Free Gyrokinetic Inverter | -7/Data Miner | Free Imp. Transmission Jammer | -7/Data Miner | Free Mass Driver | -7/Data Miner | Free Remote Force Field | -5/Factory | Scanalyzed Adv. Hacking Suite | -5/Factory | Scanalyzed Adv. Cooling System | -5/Factory | Scanalyzed Exp. System Shield | -5/Factory | Scanalyzed Imp. Heavy Siege Treads | -5/Factory | Scanalyzed Imp. Energy Mantle | -4/Factory | Scanalyzed Vortex Chain Reactor | -4/Factory | Scanalyzed Robot Schematics ------------------ M-28 Smith | -7/Data Miner | Free W-25 Informer | -7/Data Miner | Free A-15 Conveyor | -7/Data Miner | Free H-66 Slayer | -7/Data Miner | Free M-22 Extractor | -7/Data Miner | Free B-48 Gladiator | -7/Data Miner | Free Fabricated ------------ Hvy. Treads | x2 | -7/Factory Combat Drone Bay | x1 | -6/Factory Combat Drone Bay | x1 | -6/Factory Combat Drone Bay | x1 | -6/Factory Hvy. Treads | x2 | -6/Factory Combat Drone Bay | x1 | -5/Factory | Authchip Combat Drone Bay | x1 | -5/Factory Hvy. Treads | x2 | -5/Factory | Authchip Adv. Hacking Suite | x1 | -5/Factory | Authchip Adv. Hacking Suite | x1 | -5/Factory | Authchip Imp. Heavy Siege Treads | x2 | -5/Factory Combat Drone Bay | x1 | -4/Factory Combat Drone Bay | x1 | -4/Factory Imp. Transmission Jammer | x1 | -1/Access | Authchip Alien Tech Used ----------------- None Achievements -------------- None Challenges ------------ None Game ------ Seed MolecularVisualJammer Manual? 0 Play Time 05:55:33 Cumulative 178.8 hours Start 2024.02.05 @ 18:43:34 End 2024.02.06 @ 15:20:55 Sessions 5 Manual Loads 0 Difficulty Rogue Special Mode None Game No. 150 Rogue 150 Adventurer 0 Explorer 0 Win Type 0 Total 3 Types 3/0/0/0/0/0/0/0/0 Lore% 60 Gallery% 69 Achievement% 58 Wizard Run 0 Options --------- ASCII 0 Keyboard 1 Movement Numpad Keybinds 0 Fullscreen 2 Font 18/SmallcapsGlow Map View 76x50 Tactical HUD 1 Map Filters NONE Filters NONE Steam 1 RUN: c9454bb6-a460-42cb-9b25-506886c62fbd